Body_Name,Body_Code,CIPFA_Service_Code,Expenditure_Internal_Label,Expenditure_Internal_Code,Narrative,Date,Transaction_Number,Net_Amount,Capital_Revenue,Supplier_Name,Payer_Uri,Dataset_Uri,Payment_Uri,ExpenditureLine_Uri,Contract_Uri,Responsible_Unit_Uri,Supplier_Uri,CIPFA_Service_Uri,CIPFA_Division_Uri,Expenditure_CIPFA_Group_Uri,Expenditure_CIPFA_Subgroup_Uri,Expenditure_Proclass_Uri
Gloucester City Council,23UE,N/A,Contract Payments,20,S.106 Coney Hill School Dev,04/01/11,313409,1509.44,Capital,Greenfields Garden Services Ltd,http://statistics.data.gov.uk/id/local-authority/23UE,http://id.spending.esd.org.uk/Dataset/23UE/2,http://id.spending.esd.org.uk/Payment/23UE/313409,http://id.spending.esd.org.uk/ExpenditureLine/23UE/313409_1,,,http://id.spending.esd.org.uk/Supplier/23UE/greenfields-garden-services-ltd,,,,,
Gloucester City Council,23UE,N/A,Contract Payments,20,Deans Way St Oswalds S106,17/12/10,313012,-1125,Capital,Greenfields Garden Services Ltd,http://statistics.data.gov.uk/id/local-authority/23UE,http://id.spending.esd.org.uk/Dataset/23UE/2,http://id.spending.esd.org.uk/Payment/23UE/313012,http://id.spending.esd.org.uk/ExpenditureLine/23UE/313012_1,,,http://id.spending.esd.org.uk/Supplier/23UE/greenfields-garden-services-ltd,,,,,
Gloucester City Council,23UE,N/A,Contract Payments,20,Crem/Cem Garden,17/12/10,312988,724.12,Capital,Vitruvius  Management Services Ltd,http://statistics.data.gov.uk/id/local-authority/23UE,http://id.spending.esd.org.uk/Dataset/23UE/2,http://id.spending.esd.org.uk/Payment/23UE/312988,http://id.spending.esd.org.uk/ExpenditureLine/23UE/312988_1,,,http://id.spending.esd.org.uk/Supplier/23UE/vitruvius-management-services-ltd,,,,,
Gloucester City Council,23UE,N/A,Contract Payments,20,Tea & Wake Room Cem&Crem,14/12/10,312581,9264,Capital,Carpenter Oak Ltd,http://statistics.data.gov.uk/id/local-authority/23UE,http://id.spending.esd.org.uk/Dataset/23UE/2,http://id.spending.esd.org.uk/Payment/23UE/312581,http://id.spending.esd.org.uk/ExpenditureLine/23UE/312581_1,,,http://id.spending.esd.org.uk/Supplier/23UE/carpenter-oak-ltd,,,,,
Gloucester City Council,23UE,N/A,Contract Payments,20,Museum Cafe/Shop,23/12/10,312810,666,Capital,Act Surveyors Llp,http://statistics.data.gov.uk/id/local-authority/23UE,http://id.spending.esd.org.uk/Dataset/23UE/2,http://id.spending.esd.org.uk/Payment/23UE/312810,http://id.spending.esd.org.uk/ExpenditureLine/23UE/312810_1,,,http://id.spending.esd.org.uk/Supplier/23UE/act-surveyors-llp,,,,,
Gloucester City Council,23UE,N/A,Contract Payments,20,Deans Way St Oswalds S106,17/12/10,312995,13890,Capital,Greenfields Garden Services Ltd,http://statistics.data.gov.uk/id/local-authority/23UE,http://id.spending.esd.org.uk/Dataset/23UE/2,http://id.spending.esd.org.uk/Payment/23UE/312995,http://id.spending.esd.org.uk/ExpenditureLine/23UE/312995_1,,,http://id.spending.esd.org.uk/Supplier/23UE/greenfields-garden-services-ltd,,,,,
Gloucester City Council,23UE,N/A,Contract Payments,20,Milton Avenue,14/12/10,312791,-150,Capital,Btcv,http://statistics.data.gov.uk/id/local-authority/23UE,http://id.spending.esd.org.uk/Dataset/23UE/2,http://id.spending.esd.org.uk/Payment/23UE/312791,http://id.spending.esd.org.uk/ExpenditureLine/23UE/312791_1,,,http://id.spending.esd.org.uk/Supplier/23UE/btcv,,,,,
Gloucester City Council,23UE,N/A,Contract Payments,20,Depot,20/12/10,312491,900,Capital,Julian Stokes Management Ltd,http://statistics.data.gov.uk/id/local-authority/23UE,http://id.spending.esd.org.uk/Dataset/23UE/2,http://id.spending.esd.org.uk/Payment/23UE/312491,http://id.spending.esd.org.uk/ExpenditureLine/23UE/312491_1,,,http://id.spending.esd.org.uk/Supplier/23UE/julian-stokes-management-ltd,,,,,
Gloucester City Council,23UE,N/A,Contract Payments,20,Museum  New Heritage Centre,23/12/10,313322,11134.11,Capital,The Exhibition Factory,http://statistics.data.gov.uk/id/local-authority/23UE,http://id.spending.esd.org.uk/Dataset/23UE/2,http://id.spending.esd.org.uk/Payment/23UE/313322,http://id.spending.esd.org.uk/ExpenditureLine/23UE/313322_1,,,http://id.spending.esd.org.uk/Supplier/23UE/the-exhibition-factory,,,,,
Gloucester City Council,23UE,N/A,Contract Payments,20,Depot,17/12/10,312992,55547.46,Capital,Raymond Brown Construction Ltd,http://statistics.data.gov.uk/id/local-authority/23UE,http://id.spending.esd.org.uk/Dataset/23UE/2,http://id.spending.esd.org.uk/Payment/23UE/312992,http://id.spending.esd.org.uk/ExpenditureLine/23UE/312992_1,,,http://id.spending.esd.org.uk/Supplier/23UE/raymond-brown-construction-ltd,,,,,
Gloucester City Council,23UE,N/A,Contract Payments,20,Waterwells Play Equipt S106,22/12/10,313247,650,Capital,Nigel Ruxton Land Surveys,http://statistics.data.gov.uk/id/local-authority/23UE,http://id.spending.esd.org.uk/Dataset/23UE/2,http://id.spending.esd.org.uk/Payment/23UE/313247,http://id.spending.esd.org.uk/ExpenditureLine/23UE/313247_1,,,http://id.spending.esd.org.uk/Supplier/23UE/nigel-ruxton-land-surveys,,,,,
Gloucester City Council,23UE,N/A,Contract Payments,20,Museum  New Heritage Centre,02/12/10,311629,625,Capital,Goddard Consulting Llp,http://statistics.data.gov.uk/id/local-authority/23UE,http://id.spending.esd.org.uk/Dataset/23UE/2,http://id.spending.esd.org.uk/Payment/23UE/311629,http://id.spending.esd.org.uk/ExpenditureLine/23UE/311629_1,,,http://id.spending.esd.org.uk/Supplier/23UE/goddard-consulting-llp,,,,,
Gloucester City Council,23UE,N/A,Contract Payments,20,Bristol Rd 269-279a Desilting,20/12/10,313102,14154.4,Capital,Roger Dean Builders Ltd,http://statistics.data.gov.uk/id/local-authority/23UE,http://id.spending.esd.org.uk/Dataset/23UE/2,http://id.spending.esd.org.uk/Payment/23UE/313102,http://id.spending.esd.org.uk/ExpenditureLine/23UE/313102_1,,,http://id.spending.esd.org.uk/Supplier/23UE/roger-dean-builders-ltd,,,,,
Gloucester City Council,23UE,N/A,Contract Payments,20,Deans Way St Oswalds S106,17/12/10,313013,-1878,Capital,Greenfields Garden Services Ltd,http://statistics.data.gov.uk/id/local-authority/23UE,http://id.spending.esd.org.uk/Dataset/23UE/2,http://id.spending.esd.org.uk/Payment/23UE/313013,http://id.spending.esd.org.uk/ExpenditureLine/23UE/313013_1,,,http://id.spending.esd.org.uk/Supplier/23UE/greenfields-garden-services-ltd,,,,,
Gloucester City Council,23UE,N/A,Contract Payments,20,Armscroft Gdns Adnl Flood Wks,02/12/10,311695,1291.88,Capital,Hays Construction & Property,http://statistics.data.gov.uk/id/local-authority/23UE,http://id.spending.esd.org.uk/Dataset/23UE/2,http://id.spending.esd.org.uk/Payment/23UE/311695,http://id.spending.esd.org.uk/ExpenditureLine/23UE/311695_1,,,http://id.spending.esd.org.uk/Supplier/23UE/hays-construction-property,,,,,
Gloucester City Council,23UE,N/A,Contract Payments,20,Play Area Refurbishment,08/12/10,312368,1153,Capital,Lappset Uk Ltd,http://statistics.data.gov.uk/id/local-authority/23UE,http://id.spending.esd.org.uk/Dataset/23UE/2,http://id.spending.esd.org.uk/Payment/23UE/312368,http://id.spending.esd.org.uk/ExpenditureLine/23UE/312368_1,,,http://id.spending.esd.org.uk/Supplier/23UE/lappset-uk-ltd,,,,,
Gloucester City Council,23UE,N/A,Contract Payments,20,Sandhurst Lane Flood Works,16/12/10,11307,654.5,Capital,R I Wood,http://statistics.data.gov.uk/id/local-authority/23UE,http://id.spending.esd.org.uk/Dataset/23UE/2,http://id.spending.esd.org.uk/Payment/23UE/11307,http://id.spending.esd.org.uk/ExpenditureLine/23UE/11307_1,,,http://id.spending.esd.org.uk/Supplier/23UE/r-i-wood,,,,,
Gloucester City Council,23UE,N/A,Contract Payments,20,Wind Turbines,23/12/10,313083,4320,Capital,Hope Tree Services,http://statistics.data.gov.uk/id/local-authority/23UE,http://id.spending.esd.org.uk/Dataset/23UE/2,http://id.spending.esd.org.uk/Payment/23UE/313083,http://id.spending.esd.org.uk/ExpenditureLine/23UE/313083_1,,,http://id.spending.esd.org.uk/Supplier/23UE/hope-tree-services,,,,,
Gloucester City Council,23UE,N/A,Contract Payments,20,Customer Services Reorganisati,03/12/10,312013,3291,Capital,Capita Business Services Limited*,http://statistics.data.gov.uk/id/local-authority/23UE,http://id.spending.esd.org.uk/Dataset/23UE/2,http://id.spending.esd.org.uk/Payment/23UE/312013,http://id.spending.esd.org.uk/ExpenditureLine/23UE/312013_1,,,http://id.spending.esd.org.uk/Supplier/23UE/capita-business-services-limited,,,,,
Gloucester City Council,23UE,N/A,Contract Payments,20,Armscroft Gdns Adnl Flood Wks,15/12/10,312165,825,Capital,Nigel Ruxton Land Surveys,http://statistics.data.gov.uk/id/local-authority/23UE,http://id.spending.esd.org.uk/Dataset/23UE/2,http://id.spending.esd.org.uk/Payment/23UE/312165,http://id.spending.esd.org.uk/ExpenditureLine/23UE/312165_1,,,http://id.spending.esd.org.uk/Supplier/23UE/nigel-ruxton-land-surveys,,,,,
Gloucester City Council,23UE,N/A,Contract Payments,20,Museum Cafe/Shop,16/12/10,312898,4132,Capital,Amity Insulation Services Ltd,http://statistics.data.gov.uk/id/local-authority/23UE,http://id.spending.esd.org.uk/Dataset/23UE/2,http://id.spending.esd.org.uk/Payment/23UE/312898,http://id.spending.esd.org.uk/ExpenditureLine/23UE/312898_1,,,http://id.spending.esd.org.uk/Supplier/23UE/amity-insulation-services-ltd,,,,,
Gloucester City Council,23UE,N/A,Contract Payments,20,King George V Pavilion,08/12/10,312364,8082.94,Capital,King Builders (Gloucester) Ltd,http://statistics.data.gov.uk/id/local-authority/23UE,http://id.spending.esd.org.uk/Dataset/23UE/2,http://id.spending.esd.org.uk/Payment/23UE/312364,http://id.spending.esd.org.uk/ExpenditureLine/23UE/312364_1,,,http://id.spending.esd.org.uk/Supplier/23UE/king-builders-gloucester-ltd,,,,,
Gloucester City Council,23UE,N/A,Contract Payments,20,Play Area Refurbishment,15/12/10,312089,619,Capital,J R B Enterprise Ltd,http://statistics.data.gov.uk/id/local-authority/23UE,http://id.spending.esd.org.uk/Dataset/23UE/2,http://id.spending.esd.org.uk/Payment/23UE/312089,http://id.spending.esd.org.uk/ExpenditureLine/23UE/312089_1,,,http://id.spending.esd.org.uk/Supplier/23UE/j-r-b-enterprise-ltd,,,,,
Gloucester City Council,23UE,N/A,Contract Payments,20,Sebert St S106,17/12/10,312994,15296.04,Capital,Landscape To Play Ltd,http://statistics.data.gov.uk/id/local-authority/23UE,http://id.spending.esd.org.uk/Dataset/23UE/2,http://id.spending.esd.org.uk/Payment/23UE/312994,http://id.spending.esd.org.uk/ExpenditureLine/23UE/312994_1,,,http://id.spending.esd.org.uk/Supplier/23UE/landscape-to-play-ltd,,,,,
Gloucester City Council,23UE,N/A,Contract Payments,20,Tea & Wake Room Cem&Crem,17/12/10,312968,158104.78,Capital,Alun Griffiths (Contractors) Ltd,http://statistics.data.gov.uk/id/local-authority/23UE,http://id.spending.esd.org.uk/Dataset/23UE/2,http://id.spending.esd.org.uk/Payment/23UE/312968,http://id.spending.esd.org.uk/ExpenditureLine/23UE/312968_1,,,http://id.spending.esd.org.uk/Supplier/23UE/alun-griffiths-contractors-ltd,,,,,
Gloucester City Council,23UE,N/A,Contract Payments,20,Play Area Refurbishment,08/12/10,312390,1408.5,Capital,Greenfields Garden Services Ltd,http://statistics.data.gov.uk/id/local-authority/23UE,http://id.spending.esd.org.uk/Dataset/23UE/2,http://id.spending.esd.org.uk/Payment/23UE/312390,http://id.spending.esd.org.uk/ExpenditureLine/23UE/312390_1,,,http://id.spending.esd.org.uk/Supplier/23UE/greenfields-garden-services-ltd,,,,,
Gloucester City Council,23UE,N/A,Contract Payments,20,Eastgate Viewing Chamber,02/12/10,307228,507.93,Capital,Bere Architects,http://statistics.data.gov.uk/id/local-authority/23UE,http://id.spending.esd.org.uk/Dataset/23UE/2,http://id.spending.esd.org.uk/Payment/23UE/307228,http://id.spending.esd.org.uk/ExpenditureLine/23UE/307228_1,,,http://id.spending.esd.org.uk/Supplier/23UE/bere-architects,,,,,
Gloucester City Council,23UE,N/A,Contract Payments,20,Museum Stone Roof Repairs,15/12/10,312252,500,Capital,Goddard Consulting Llp,http://statistics.data.gov.uk/id/local-authority/23UE,http://id.spending.esd.org.uk/Dataset/23UE/2,http://id.spending.esd.org.uk/Payment/23UE/312252,http://id.spending.esd.org.uk/ExpenditureLine/23UE/312252_1,,,http://id.spending.esd.org.uk/Supplier/23UE/goddard-consulting-llp,,,,,
Gloucester City Council,23UE,N/A,Contract Payments,20,Plock Ct Surface Water,02/12/10,311505,1925,Capital,Jpr Environmental,http://statistics.data.gov.uk/id/local-authority/23UE,http://id.spending.esd.org.uk/Dataset/23UE/2,http://id.spending.esd.org.uk/Payment/23UE/311505,http://id.spending.esd.org.uk/ExpenditureLine/23UE/311505_1,,,http://id.spending.esd.org.uk/Supplier/23UE/jpr-environmental,,,,,
Gloucester City Council,23UE,N/A,Contract Payments,20,Museum Cafe/Shop,16/12/10,312897,845,Capital,Esg Asbestos Ltd,http://statistics.data.gov.uk/id/local-authority/23UE,http://id.spending.esd.org.uk/Dataset/23UE/2,http://id.spending.esd.org.uk/Payment/23UE/312897,http://id.spending.esd.org.uk/ExpenditureLine/23UE/312897_1,,,http://id.spending.esd.org.uk/Supplier/23UE/esg-asbestos-ltd,,,,,
Gloucester City Council,23UE,N/A,Contract Payments,20,Crematorium Roads,08/12/10,312391,6567.36,Capital,British Telecommunications Plc,http://statistics.data.gov.uk/id/local-authority/23UE,http://id.spending.esd.org.uk/Dataset/23UE/2,http://id.spending.esd.org.uk/Payment/23UE/312391,http://id.spending.esd.org.uk/ExpenditureLine/23UE/312391_1,,,http://id.spending.esd.org.uk/Supplier/23UE/british-telecommunications-plc,,,,,
Gloucester City Council,23UE,N/A,Contract Payments,20,Dwelling Improvements,02/12/10,312004,696433.77,Capital,Gloucester City Homes,http://statistics.data.gov.uk/id/local-authority/23UE,http://id.spending.esd.org.uk/Dataset/23UE/2,http://id.spending.esd.org.uk/Payment/23UE/312004,http://id.spending.esd.org.uk/ExpenditureLine/23UE/312004_1,,,http://id.spending.esd.org.uk/Supplier/23UE/gloucester-city-homes,,,,,
Gloucester City Council,23UE,N/A,Contract Payments,20,Accommodation Review,20/12/10,312520,2323.38,Capital,Dell Computers Corporation Ltd,http://statistics.data.gov.uk/id/local-authority/23UE,http://id.spending.esd.org.uk/Dataset/23UE/2,http://id.spending.esd.org.uk/Payment/23UE/312520,http://id.spending.esd.org.uk/ExpenditureLine/23UE/312520_1,,,http://id.spending.esd.org.uk/Supplier/23UE/dell-computers-corporation-ltd,,,,,
Gloucester City Council,23UE,N/A,Contract Payments,20,Wind Turbines,23/12/10,312981,1440,Capital,Hope Tree Services,http://statistics.data.gov.uk/id/local-authority/23UE,http://id.spending.esd.org.uk/Dataset/23UE/2,http://id.spending.esd.org.uk/Payment/23UE/312981,http://id.spending.esd.org.uk/ExpenditureLine/23UE/312981_1,,,http://id.spending.esd.org.uk/Supplier/23UE/hope-tree-services,,,,,
Gloucester City Council,23UE,N/A,Contract Payments,20,Coneyhill Hospital S 106 Works,14/01/11,313416,1650.82,Capital,Steelway Fensecure Ltd,http://statistics.data.gov.uk/id/local-authority/23UE,http://id.spending.esd.org.uk/Dataset/23UE/2,http://id.spending.esd.org.uk/Payment/23UE/313416,http://id.spending.esd.org.uk/ExpenditureLine/23UE/313416_1,,,http://id.spending.esd.org.uk/Supplier/23UE/steelway-fensecure-ltd,,,,,
Gloucester City Council,23UE,N/A,Contract Payments,20,Museum  New Heritage Centre,10/12/10,310094,1480.5,Capital,Peter Goodhind Associates Ltd,http://statistics.data.gov.uk/id/local-authority/23UE,http://id.spending.esd.org.uk/Dataset/23UE/2,http://id.spending.esd.org.uk/Payment/23UE/310094,http://id.spending.esd.org.uk/ExpenditureLine/23UE/310094_1,,,http://id.spending.esd.org.uk/Supplier/23UE/peter-goodhind-associates-ltd,,,,,
Gloucester City Council,23UE,N/A,Contract Payments,20,Flats Bins,10/12/10,312091,2470,Capital,Uk Container Maintenance Ltd,http://statistics.data.gov.uk/id/local-authority/23UE,http://id.spending.esd.org.uk/Dataset/23UE/2,http://id.spending.esd.org.uk/Payment/23UE/312091,http://id.spending.esd.org.uk/ExpenditureLine/23UE/312091_1,,,http://id.spending.esd.org.uk/Supplier/23UE/uk-container-maintenance-ltd,,,,,
Gloucester City Council,23UE,N/A,Contract Payments,20,Bristol Rd 269-279a Desilting,20/12/10,313101,1415.44,Capital,Astam G.B.C. Consultancy Ltd,http://statistics.data.gov.uk/id/local-authority/23UE,http://id.spending.esd.org.uk/Dataset/23UE/2,http://id.spending.esd.org.uk/Payment/23UE/313101,http://id.spending.esd.org.uk/ExpenditureLine/23UE/313101_1,,,http://id.spending.esd.org.uk/Supplier/23UE/astam-g-b-c-consultancy-ltd,,,,,
Gloucester City Council,23UE,N/A,Contract Payments,20,Tea & Wake Room Cem&Crem,17/12/10,312969,30000,Capital,Vitruvius  Management Services Ltd,http://statistics.data.gov.uk/id/local-authority/23UE,http://id.spending.esd.org.uk/Dataset/23UE/2,http://id.spending.esd.org.uk/Payment/23UE/312969,http://id.spending.esd.org.uk/ExpenditureLine/23UE/312969_1,,,http://id.spending.esd.org.uk/Supplier/23UE/vitruvius-management-services-ltd,,,,,
Gloucester City Council,23UE,N/A,Contract Payments,20,Quay Wall At Countrywide,20/12/10,312260,1259.38,Capital,Hays Construction & Property,http://statistics.data.gov.uk/id/local-authority/23UE,http://id.spending.esd.org.uk/Dataset/23UE/2,http://id.spending.esd.org.uk/Payment/23UE/312260,http://id.spending.esd.org.uk/ExpenditureLine/23UE/312260_1,,,http://id.spending.esd.org.uk/Supplier/23UE/hays-construction-property,,,,,
Gloucester City Council,23UE,N/A,Contract Payments,20,Plock Ct Surface Water,02/12/10,312011,662,Capital,Three Counties Drain Service,http://statistics.data.gov.uk/id/local-authority/23UE,http://id.spending.esd.org.uk/Dataset/23UE/2,http://id.spending.esd.org.uk/Payment/23UE/312011,http://id.spending.esd.org.uk/ExpenditureLine/23UE/312011_1,,,http://id.spending.esd.org.uk/Supplier/23UE/three-counties-drain-service,,,,,
Gloucester City Council,23UE,N/A,Contract Payments,20,Flats Bins,17/12/10,312504,840,Capital,Uk Container Maintenance Ltd,http://statistics.data.gov.uk/id/local-authority/23UE,http://id.spending.esd.org.uk/Dataset/23UE/2,http://id.spending.esd.org.uk/Payment/23UE/312504,http://id.spending.esd.org.uk/ExpenditureLine/23UE/312504_1,,,http://id.spending.esd.org.uk/Supplier/23UE/uk-container-maintenance-ltd,,,,,
Gloucester City Council,23UE,N/A,Redacted,Redacted,Redacted,15/12/10,312651,641.25,,Redacted,http://statistics.data.gov.uk/id/local-authority/23UE,http://id.spending.esd.org.uk/Dataset/23UE/2,http://id.spending.esd.org.uk/Payment/23UE/312651,http://id.spending.esd.org.uk/ExpenditureLine/23UE/312651_1,,,http://id.spending.esd.org.uk/Supplier/23UE/redacted,,,,,
Gloucester City Council,23UE,N/A,Redacted,Redacted,Redacted,07/12/10,312187,641.25,,Redacted,http://statistics.data.gov.uk/id/local-authority/23UE,http://id.spending.esd.org.uk/Dataset/23UE/2,http://id.spending.esd.org.uk/Payment/23UE/312187,http://id.spending.esd.org.uk/ExpenditureLine/23UE/312187_1,,,http://id.spending.esd.org.uk/Supplier/23UE/redacted,,,,,
Gloucester City Council,23UE,N/A,Redacted,Redacted,Redacted,22/12/10,313198,641.25,,Redacted,http://statistics.data.gov.uk/id/local-authority/23UE,http://id.spending.esd.org.uk/Dataset/23UE/2,http://id.spending.esd.org.uk/Payment/23UE/313198,http://id.spending.esd.org.uk/ExpenditureLine/23UE/313198_1,,,http://id.spending.esd.org.uk/Supplier/23UE/redacted,,,,,
Gloucester City Council,23UE,N/A,It Hardware >?5000,42,Network Upgrades,14/12/10,312191,5905.36,Capital,Cablecom Networking Ltd,http://statistics.data.gov.uk/id/local-authority/23UE,http://id.spending.esd.org.uk/Dataset/23UE/2,http://id.spending.esd.org.uk/Payment/23UE/312191,http://id.spending.esd.org.uk/ExpenditureLine/23UE/312191_1,,,http://id.spending.esd.org.uk/Supplier/23UE/cablecom-networking-ltd,,,,,
Gloucester City Council,23UE,N/A,Renovation Grants,71,Emergency & Security Grants,08/12/10,312362,4876.25,Capital,A Bennett,http://statistics.data.gov.uk/id/local-authority/23UE,http://id.spending.esd.org.uk/Dataset/23UE/2,http://id.spending.esd.org.uk/Payment/23UE/312362,http://id.spending.esd.org.uk/ExpenditureLine/23UE/312362_1,,,http://id.spending.esd.org.uk/Supplier/23UE/a-bennett,,,,,
Gloucester City Council,23UE,N/A,Renovation Grants,71,Emergency & Security Grants,03/12/10,312087,8775,Capital,L B & C B Taylor (Builders),http://statistics.data.gov.uk/id/local-authority/23UE,http://id.spending.esd.org.uk/Dataset/23UE/2,http://id.spending.esd.org.uk/Payment/23UE/312087,http://id.spending.esd.org.uk/ExpenditureLine/23UE/312087_1,,,http://id.spending.esd.org.uk/Supplier/23UE/l-b-c-b-taylor-builders,,,,,
Gloucester City Council,23UE,N/A,Renovation Grants,71,Emergency & Security Grants,03/12/10,312086,2979.2,Capital,Care & Repair,http://statistics.data.gov.uk/id/local-authority/23UE,http://id.spending.esd.org.uk/Dataset/23UE/2,http://id.spending.esd.org.uk/Payment/23UE/312086,http://id.spending.esd.org.uk/ExpenditureLine/23UE/312086_1,,,http://id.spending.esd.org.uk/Supplier/23UE/care-repair,,,,,
Gloucester City Council,23UE,N/A,Disabled Facility Grants,74,Improvement Grants,08/12/10,312375,6540.37,Capital,S Rosato & Sons Ltd,http://statistics.data.gov.uk/id/local-authority/23UE,http://id.spending.esd.org.uk/Dataset/23UE/2,http://id.spending.esd.org.uk/Payment/23UE/312375,http://id.spending.esd.org.uk/ExpenditureLine/23UE/312375_1,,,http://id.spending.esd.org.uk/Supplier/23UE/s-rosato-sons-ltd,,,,,
Gloucester City Council,23UE,N/A,Disabled Facility Grants,74,Improvement Grants,15/12/10,312738,1269,Capital,Stroud Stairlifts,http://statistics.data.gov.uk/id/local-authority/23UE,http://id.spending.esd.org.uk/Dataset/23UE/2,http://id.spending.esd.org.uk/Payment/23UE/312738,http://id.spending.esd.org.uk/ExpenditureLine/23UE/312738_1,,,http://id.spending.esd.org.uk/Supplier/23UE/stroud-stairlifts,,,,,
Gloucester City Council,23UE,N/A,Disabled Facility Grants,74,Improvement Grants,08/12/10,312373,5049,Capital,Beard & Tandy Ltd,http://statistics.data.gov.uk/id/local-authority/23UE,http://id.spending.esd.org.uk/Dataset/23UE/2,http://id.spending.esd.org.uk/Payment/23UE/312373,http://id.spending.esd.org.uk/ExpenditureLine/23UE/312373_1,,,http://id.spending.esd.org.uk/Supplier/23UE/beard-tandy-ltd,,,,,
Gloucester City Council,23UE,N/A,Disabled Facility Grants,74,Improvement Grants,04/01/11,313534,1664,Capital,T.P.G. Disable Aids,http://statistics.data.gov.uk/id/local-authority/23UE,http://id.spending.esd.org.uk/Dataset/23UE/2,http://id.spending.esd.org.uk/Payment/23UE/313534,http://id.spending.esd.org.uk/ExpenditureLine/23UE/313534_1,,,http://id.spending.esd.org.uk/Supplier/23UE/t-p-g-disable-aids,,,,,
Gloucester City Council,23UE,N/A,Disabled Facility Grants,74,Improvement Grants,08/12/10,312363,1550,Capital,Stannah Lift Services Ltd,http://statistics.data.gov.uk/id/local-authority/23UE,http://id.spending.esd.org.uk/Dataset/23UE/2,http://id.spending.esd.org.uk/Payment/23UE/312363,http://id.spending.esd.org.uk/ExpenditureLine/23UE/312363_1,,,http://id.spending.esd.org.uk/Supplier/23UE/stannah-lift-services-ltd,,,,,
Gloucester City Council,23UE,N/A,Disabled Facility Grants,74,Improvement Grants,08/12/10,312361,5684.68,Capital,Care & Repair,http://statistics.data.gov.uk/id/local-authority/23UE,http://id.spending.esd.org.uk/Dataset/23UE/2,http://id.spending.esd.org.uk/Payment/23UE/312361,http://id.spending.esd.org.uk/ExpenditureLine/23UE/312361_1,,,http://id.spending.esd.org.uk/Supplier/23UE/care-repair,,,,,
Gloucester City Council,23UE,N/A,Disabled Facility Grants,74,Improvement Grants,04/01/11,313535,1854.07,Capital,S P Baker,http://statistics.data.gov.uk/id/local-authority/23UE,http://id.spending.esd.org.uk/Dataset/23UE/2,http://id.spending.esd.org.uk/Payment/23UE/313535,http://id.spending.esd.org.uk/ExpenditureLine/23UE/313535_1,,,http://id.spending.esd.org.uk/Supplier/23UE/s-p-baker,,,,,
Gloucester City Council,23UE,N/A,Disabled Facility Grants,74,Improvement Grants,08/12/10,312374,6095,Capital,T & P Franklin & Sons Ltd,http://statistics.data.gov.uk/id/local-authority/23UE,http://id.spending.esd.org.uk/Dataset/23UE/2,http://id.spending.esd.org.uk/Payment/23UE/312374,http://id.spending.esd.org.uk/ExpenditureLine/23UE/312374_1,,,http://id.spending.esd.org.uk/Supplier/23UE/t-p-franklin-sons-ltd,,,,,
Gloucester City Council,23UE,N/A,Discretionary Grant,76,Flood Defence Grants To Househ,04/01/11,313455,500,Capital,Mrs J Beard,http://statistics.data.gov.uk/id/local-authority/23UE,http://id.spending.esd.org.uk/Dataset/23UE/2,http://id.spending.esd.org.uk/Payment/23UE/313455,http://id.spending.esd.org.uk/ExpenditureLine/23UE/313455_1,,,http://id.spending.esd.org.uk/Supplier/23UE/mrs-j-beard,,,,,
Gloucester City Council,23UE,N/A,Other Capital Grants,89,Care And Repair Grants,15/12/10,312051,9868.14,Capital,Care & Repair,http://statistics.data.gov.uk/id/local-authority/23UE,http://id.spending.esd.org.uk/Dataset/23UE/2,http://id.spending.esd.org.uk/Payment/23UE/312051,http://id.spending.esd.org.uk/ExpenditureLine/23UE/312051_1,,,http://id.spending.esd.org.uk/Supplier/23UE/care-repair,,,,,
Gloucester City Council,23UE,N/A,Professional Fees,2980,Legal Services,09/12/10,312145,800,Revenue,Alexander Beaver Associates,http://statistics.data.gov.uk/id/local-authority/23UE,http://id.spending.esd.org.uk/Dataset/23UE/2,http://id.spending.esd.org.uk/Payment/23UE/312145,http://id.spending.esd.org.uk/ExpenditureLine/23UE/312145_1,,,http://id.spending.esd.org.uk/Supplier/23UE/alexander-beaver-associates,,,,,
Gloucester City Council,23UE,N/A,General Repair/Maint Buildings,3000,Depot Admin Holding A/C,15/12/10,312753,3840,Revenue,King Builders (Gloucester) Ltd,http://statistics.data.gov.uk/id/local-authority/23UE,http://id.spending.esd.org.uk/Dataset/23UE/2,http://id.spending.esd.org.uk/Payment/23UE/312753,http://id.spending.esd.org.uk/ExpenditureLine/23UE/312753_1,,,http://id.spending.esd.org.uk/Supplier/23UE/king-builders-gloucester-ltd,,,,,
Gloucester City Council,23UE,N/A,General Repair/Maint Buildings,3000,Off Street Car Parks,10/12/10,312509,856,Revenue,J M Grail (General Engineering) Ltd,http://statistics.data.gov.uk/id/local-authority/23UE,http://id.spending.esd.org.uk/Dataset/23UE/2,http://id.spending.esd.org.uk/Payment/23UE/312509,http://id.spending.esd.org.uk/ExpenditureLine/23UE/312509_1,,,http://id.spending.esd.org.uk/Supplier/23UE/j-m-grail-general-engineering-ltd,,,,,
Gloucester City Council,23UE,N/A,General Repair/Maint Buildings,3000,Off Street Car Parks,16/12/10,312896,1626,Revenue,J M Grail (General Engineering) Ltd,http://statistics.data.gov.uk/id/local-authority/23UE,http://id.spending.esd.org.uk/Dataset/23UE/2,http://id.spending.esd.org.uk/Payment/23UE/312896,http://id.spending.esd.org.uk/ExpenditureLine/23UE/312896_1,,,http://id.spending.esd.org.uk/Supplier/23UE/j-m-grail-general-engineering-ltd,,,,,
Gloucester City Council,23UE,N/A,General Repair/Maint Buildings,3000,Aspire Admin Charges,15/12/10,312754,1190,Revenue,King Builders (Gloucester) Ltd,http://statistics.data.gov.uk/id/local-authority/23UE,http://id.spending.esd.org.uk/Dataset/23UE/2,http://id.spending.esd.org.uk/Payment/23UE/312754,http://id.spending.esd.org.uk/ExpenditureLine/23UE/312754_1,,,http://id.spending.esd.org.uk/Supplier/23UE/king-builders-gloucester-ltd,,,,,
Gloucester City Council,23UE,N/A,General Repair/Maint Buildings,3000,Investment Property,17/12/10,312991,1235,Revenue,Hewer Facilities Mgt Ltd,http://statistics.data.gov.uk/id/local-authority/23UE,http://id.spending.esd.org.uk/Dataset/23UE/2,http://id.spending.esd.org.uk/Payment/23UE/312991,http://id.spending.esd.org.uk/ExpenditureLine/23UE/312991_1,,,http://id.spending.esd.org.uk/Supplier/23UE/hewer-facilities-mgt-ltd,,,,,
Gloucester City Council,23UE,N/A,General Repair/Maint Buildings,3000,Off Street Car Parks,02/12/10,312008,1495,Revenue,King Builders (Gloucester) Ltd,http://statistics.data.gov.uk/id/local-authority/23UE,http://id.spending.esd.org.uk/Dataset/23UE/2,http://id.spending.esd.org.uk/Payment/23UE/312008,http://id.spending.esd.org.uk/ExpenditureLine/23UE/312008_1,,,http://id.spending.esd.org.uk/Supplier/23UE/king-builders-gloucester-ltd,,,,,
Gloucester City Council,23UE,N/A,General Repair/Maint Buildings,3000,75/81 Eastgate Street,02/12/10,310710,851.27,Revenue,Severn Signs Ltd,http://statistics.data.gov.uk/id/local-authority/23UE,http://id.spending.esd.org.uk/Dataset/23UE/2,http://id.spending.esd.org.uk/Payment/23UE/310710,http://id.spending.esd.org.uk/ExpenditureLine/23UE/310710_1,,,http://id.spending.esd.org.uk/Supplier/23UE/severn-signs-ltd,,,,,
Gloucester City Council,23UE,N/A,General Repair/Maint Buildings,3000,City Museum And Art Gallery,13/12/10,312245,3391,Revenue,Advanced Removals & Storage Ltd,http://statistics.data.gov.uk/id/local-authority/23UE,http://id.spending.esd.org.uk/Dataset/23UE/2,http://id.spending.esd.org.uk/Payment/23UE/312245,http://id.spending.esd.org.uk/ExpenditureLine/23UE/312245_1,,,http://id.spending.esd.org.uk/Supplier/23UE/advanced-removals-storage-ltd,,,,,
Gloucester City Council,23UE,N/A,General Repair/Maint Buildings,3000,Off Street Car Parks,16/12/10,312903,1212.47,Revenue,Anderson Civil Engineering Uk Ltd,http://statistics.data.gov.uk/id/local-authority/23UE,http://id.spending.esd.org.uk/Dataset/23UE/2,http://id.spending.esd.org.uk/Payment/23UE/312903,http://id.spending.esd.org.uk/ExpenditureLine/23UE/312903_1,,,http://id.spending.esd.org.uk/Supplier/23UE/anderson-civil-engineering-uk-ltd,,,,,
Gloucester City Council,23UE,N/A,Pat,3012,Investment Property,07/01/11,312805,5532.65,Revenue,Tm Facilities Services Ltd,http://statistics.data.gov.uk/id/local-authority/23UE,http://id.spending.esd.org.uk/Dataset/23UE/2,http://id.spending.esd.org.uk/Payment/23UE/312805,http://id.spending.esd.org.uk/ExpenditureLine/23UE/312805_1,,,http://id.spending.esd.org.uk/Supplier/23UE/tm-facilities-services-ltd,,,,,
Gloucester City Council,23UE,N/A,Fire Risk Assessment,3019,Investment Property,15/12/10,312275,1325,Revenue,Specialist Fire Solutions Ltd,http://statistics.data.gov.uk/id/local-authority/23UE,http://id.spending.esd.org.uk/Dataset/23UE/2,http://id.spending.esd.org.uk/Payment/23UE/312275,http://id.spending.esd.org.uk/ExpenditureLine/23UE/312275_1,,,http://id.spending.esd.org.uk/Supplier/23UE/specialist-fire-solutions-ltd,,,,,
Gloucester City Council,23UE,N/A,Fire Risk Assessment,3019,Investment Property,04/01/11,313430,3415,Revenue,King Builders (Gloucester) Ltd,http://statistics.data.gov.uk/id/local-authority/23UE,http://id.spending.esd.org.uk/Dataset/23UE/2,http://id.spending.esd.org.uk/Payment/23UE/313430,http://id.spending.esd.org.uk/ExpenditureLine/23UE/313430_1,,,http://id.spending.esd.org.uk/Supplier/23UE/king-builders-gloucester-ltd,,,,,
Gloucester City Council,23UE,N/A,Fire Risk Assessment,3019,Investment Property,15/12/10,312756,770,Revenue,King Builders (Gloucester) Ltd,http://statistics.data.gov.uk/id/local-authority/23UE,http://id.spending.esd.org.uk/Dataset/23UE/2,http://id.spending.esd.org.uk/Payment/23UE/312756,http://id.spending.esd.org.uk/ExpenditureLine/23UE/312756_1,,,http://id.spending.esd.org.uk/Supplier/23UE/king-builders-gloucester-ltd,,,,,
Gloucester City Council,23UE,N/A,Fire Risk Assessment,3019,75/81 Eastgate Street,02/12/10,312009,2825,Revenue,King Builders (Gloucester) Ltd,http://statistics.data.gov.uk/id/local-authority/23UE,http://id.spending.esd.org.uk/Dataset/23UE/2,http://id.spending.esd.org.uk/Payment/23UE/312009,http://id.spending.esd.org.uk/ExpenditureLine/23UE/312009_1,,,http://id.spending.esd.org.uk/Supplier/23UE/king-builders-gloucester-ltd,,,,,
Gloucester City Council,23UE,N/A,Fire Risk Assessment,3019,75/81 Eastgate Street,02/12/10,312007,2912,Revenue,King Builders (Gloucester) Ltd,http://statistics.data.gov.uk/id/local-authority/23UE,http://id.spending.esd.org.uk/Dataset/23UE/2,http://id.spending.esd.org.uk/Payment/23UE/312007,http://id.spending.esd.org.uk/ExpenditureLine/23UE/312007_1,,,http://id.spending.esd.org.uk/Supplier/23UE/king-builders-gloucester-ltd,,,,,
Gloucester City Council,23UE,N/A,Service Charges,3020,Docks Complex - Services,17/12/10,312921,16760.49,Revenue,King Sturge Llp,http://statistics.data.gov.uk/id/local-authority/23UE,http://id.spending.esd.org.uk/Dataset/23UE/2,http://id.spending.esd.org.uk/Payment/23UE/312921,http://id.spending.esd.org.uk/ExpenditureLine/23UE/312921_1,,,http://id.spending.esd.org.uk/Supplier/23UE/king-sturge-llp,,,,,
Gloucester City Council,23UE,N/A,Service Charges,3020,Docks Complex - Services,10/12/10,311696,16760,Revenue,King Sturge Llp,http://statistics.data.gov.uk/id/local-authority/23UE,http://id.spending.esd.org.uk/Dataset/23UE/2,http://id.spending.esd.org.uk/Payment/23UE/311696,http://id.spending.esd.org.uk/ExpenditureLine/23UE/311696_1,,,http://id.spending.esd.org.uk/Supplier/23UE/king-sturge-llp,,,,,
Gloucester City Council,23UE,N/A,Maint Of Grounds - General,3030,Environmental Areas,22/12/10,313255,1079,Revenue,R & R Group,http://statistics.data.gov.uk/id/local-authority/23UE,http://id.spending.esd.org.uk/Dataset/23UE/2,http://id.spending.esd.org.uk/Payment/23UE/313255,http://id.spending.esd.org.uk/ExpenditureLine/23UE/313255_1,,,http://id.spending.esd.org.uk/Supplier/23UE/r-r-group,,,,,
Gloucester City Council,23UE,N/A,Maint Of Grounds - General,3030,Cemeteries,17/12/10,312989,765,Revenue,Glevum Memorials,http://statistics.data.gov.uk/id/local-authority/23UE,http://id.spending.esd.org.uk/Dataset/23UE/2,http://id.spending.esd.org.uk/Payment/23UE/312989,http://id.spending.esd.org.uk/ExpenditureLine/23UE/312989_1,,,http://id.spending.esd.org.uk/Supplier/23UE/glevum-memorials,,,,,
Gloucester City Council,23UE,N/A,Maint Of Grounds - General,3030,Cemeteries,10/12/10,312505,851.06,Revenue,Chepstow Plantaria Ltd (T/A Norton Gard Cen),http://statistics.data.gov.uk/id/local-authority/23UE,http://id.spending.esd.org.uk/Dataset/23UE/2,http://id.spending.esd.org.uk/Payment/23UE/312505,http://id.spending.esd.org.uk/ExpenditureLine/23UE/312505_1,,,http://id.spending.esd.org.uk/Supplier/23UE/chepstow-plantaria-ltd-t-a-norton-gard-cen,,,,,
Gloucester City Council,23UE,N/A,Security Equipment Serv/Repair,3038,Cctv Revenue Budget,10/12/10,312496,1418.88,Revenue,British Telecommunications,http://statistics.data.gov.uk/id/local-authority/23UE,http://id.spending.esd.org.uk/Dataset/23UE/2,http://id.spending.esd.org.uk/Payment/23UE/312496,http://id.spending.esd.org.uk/ExpenditureLine/23UE/312496_1,,,http://id.spending.esd.org.uk/Supplier/23UE/british-telecommunications,,,,,
Gloucester City Council,23UE,N/A,Air Con,3066,Investment Property,08/12/10,312372,4642,Revenue,Hewer Facilities Mgt Ltd,http://statistics.data.gov.uk/id/local-authority/23UE,http://id.spending.esd.org.uk/Dataset/23UE/2,http://id.spending.esd.org.uk/Payment/23UE/312372,http://id.spending.esd.org.uk/ExpenditureLine/23UE/312372_1,,,http://id.spending.esd.org.uk/Supplier/23UE/hewer-facilities-mgt-ltd,,,,,
Gloucester City Council,23UE,N/A,Gas Supply,3100,City Museum And Art Gallery,04/01/11,313449,1572.2,Revenue,Corona Energy,http://statistics.data.gov.uk/id/local-authority/23UE,http://id.spending.esd.org.uk/Dataset/23UE/2,http://id.spending.esd.org.uk/Payment/23UE/313449,http://id.spending.esd.org.uk/ExpenditureLine/23UE/313449_1,,,http://id.spending.esd.org.uk/Supplier/23UE/corona-energy,,,,,
Gloucester City Council,23UE,N/A,Gas Supply,3100,Crematorium,10/12/10,312048,4979.41,Revenue,Corona Energy,http://statistics.data.gov.uk/id/local-authority/23UE,http://id.spending.esd.org.uk/Dataset/23UE/2,http://id.spending.esd.org.uk/Payment/23UE/312048,http://id.spending.esd.org.uk/ExpenditureLine/23UE/312048_1,,,http://id.spending.esd.org.uk/Supplier/23UE/corona-energy,,,,,
Gloucester City Council,23UE,N/A,Gas Supply,3100,Crematorium,04/01/11,313450,1439.59,Revenue,Corona Energy,http://statistics.data.gov.uk/id/local-authority/23UE,http://id.spending.esd.org.uk/Dataset/23UE/2,http://id.spending.esd.org.uk/Payment/23UE/313450,http://id.spending.esd.org.uk/ExpenditureLine/23UE/313450_1,,,http://id.spending.esd.org.uk/Supplier/23UE/corona-energy,,,,,
Gloucester City Council,23UE,N/A,Gas Supply,3100,Aspire Admin Charges,04/01/11,313445,20921.03,Revenue,Corona Energy,http://statistics.data.gov.uk/id/local-authority/23UE,http://id.spending.esd.org.uk/Dataset/23UE/2,http://id.spending.esd.org.uk/Payment/23UE/313445,http://id.spending.esd.org.uk/ExpenditureLine/23UE/313445_1,,,http://id.spending.esd.org.uk/Supplier/23UE/corona-energy,,,,,
Gloucester City Council,23UE,N/A,Gas Supply,3100,Docks Complex - Services,04/01/11,313453,1571.4,Revenue,Corona Energy,http://statistics.data.gov.uk/id/local-authority/23UE,http://id.spending.esd.org.uk/Dataset/23UE/2,http://id.spending.esd.org.uk/Payment/23UE/313453,http://id.spending.esd.org.uk/ExpenditureLine/23UE/313453_1,,,http://id.spending.esd.org.uk/Supplier/23UE/corona-energy,,,,,
Gloucester City Council,23UE,N/A,Gas Supply,3100,Crematorium,04/01/11,313454,5612.4,Revenue,Corona Energy,http://statistics.data.gov.uk/id/local-authority/23UE,http://id.spending.esd.org.uk/Dataset/23UE/2,http://id.spending.esd.org.uk/Payment/23UE/313454,http://id.spending.esd.org.uk/ExpenditureLine/23UE/313454_1,,,http://id.spending.esd.org.uk/Supplier/23UE/corona-energy,,,,,
Gloucester City Council,23UE,N/A,Gas Supply,3100,Aspire Admin Charges,04/01/11,313448,1141.27,Revenue,Corona Energy,http://statistics.data.gov.uk/id/local-authority/23UE,http://id.spending.esd.org.uk/Dataset/23UE/2,http://id.spending.esd.org.uk/Payment/23UE/313448,http://id.spending.esd.org.uk/ExpenditureLine/23UE/313448_1,,,http://id.spending.esd.org.uk/Supplier/23UE/corona-energy,,,,,
Gloucester City Council,23UE,N/A,Electricity Supply,3110,Depot Admin Holding A/C,13/12/10,312541,40891.64,Revenue,Southern Electric,http://statistics.data.gov.uk/id/local-authority/23UE,http://id.spending.esd.org.uk/Dataset/23UE/2,http://id.spending.esd.org.uk/Payment/23UE/312541,http://id.spending.esd.org.uk/ExpenditureLine/23UE/312541_1,,,http://id.spending.esd.org.uk/Supplier/23UE/southern-electric,,,,,
Gloucester City Council,23UE,N/A,Electricity Supply,3110,Street Trading Licences,15/12/10,312270,1043.45,Revenue,Npower,http://statistics.data.gov.uk/id/local-authority/23UE,http://id.spending.esd.org.uk/Dataset/23UE/2,http://id.spending.esd.org.uk/Payment/23UE/312270,http://id.spending.esd.org.uk/ExpenditureLine/23UE/312270_1,,,http://id.spending.esd.org.uk/Supplier/23UE/npower,,,,,
Gloucester City Council,23UE,N/A,Electricity Supply,3110,Street Trading Licences,23/12/10,313004,1657.71,Revenue,Npower,http://statistics.data.gov.uk/id/local-authority/23UE,http://id.spending.esd.org.uk/Dataset/23UE/2,http://id.spending.esd.org.uk/Payment/23UE/313004,http://id.spending.esd.org.uk/ExpenditureLine/23UE/313004_1,,,http://id.spending.esd.org.uk/Supplier/23UE/npower,,,,,
Gloucester City Council,23UE,N/A,Electricity Supply,3110,Off Street Car Parks,02/12/10,311348,1162.23,Revenue,British Gas,http://statistics.data.gov.uk/id/local-authority/23UE,http://id.spending.esd.org.uk/Dataset/23UE/2,http://id.spending.esd.org.uk/Payment/23UE/311348,http://id.spending.esd.org.uk/ExpenditureLine/23UE/311348_1,,,http://id.spending.esd.org.uk/Supplier/23UE/british-gas,,,,,
Gloucester City Council,23UE,N/A,Rents,3200,75/81 Eastgate Street,08/12/10,312243,34250,Revenue,Prime Estates Property Management,http://statistics.data.gov.uk/id/local-authority/23UE,http://id.spending.esd.org.uk/Dataset/23UE/2,http://id.spending.esd.org.uk/Payment/23UE/312243,http://id.spending.esd.org.uk/ExpenditureLine/23UE/312243_1,,,http://id.spending.esd.org.uk/Supplier/23UE/prime-estates-property-management,,,,,
Gloucester City Council,23UE,N/A,Rents,3200,Off Street Car Parks,04/01/11,312447,58750,Revenue,Workman Llp Rent Account,http://statistics.data.gov.uk/id/local-authority/23UE,http://id.spending.esd.org.uk/Dataset/23UE/2,http://id.spending.esd.org.uk/Payment/23UE/312447,http://id.spending.esd.org.uk/ExpenditureLine/23UE/312447_1,,,http://id.spending.esd.org.uk/Supplier/23UE/workman-llp-rent-account,,,,,
Gloucester City Council,23UE,N/A,Rents,3200,Off Street Car Parks,08/12/10,312232,600,Revenue,Boots The Chemist,http://statistics.data.gov.uk/id/local-authority/23UE,http://id.spending.esd.org.uk/Dataset/23UE/2,http://id.spending.esd.org.uk/Payment/23UE/312232,http://id.spending.esd.org.uk/ExpenditureLine/23UE/312232_1,,,http://id.spending.esd.org.uk/Supplier/23UE/boots-the-chemist,,,,,
Gloucester City Council,23UE,N/A,Rents,3200,Off Street Car Parks,04/01/11,312449,1081,Revenue,Workman Llp Service Charge Account,http://statistics.data.gov.uk/id/local-authority/23UE,http://id.spending.esd.org.uk/Dataset/23UE/2,http://id.spending.esd.org.uk/Payment/23UE/312449,http://id.spending.esd.org.uk/ExpenditureLine/23UE/312449_1,,,http://id.spending.esd.org.uk/Supplier/23UE/workman-llp-service-charge-account,,,,,
Gloucester City Council,23UE,N/A,Water Supply,3400,Off Street Car Parks,04/01/11,313483,2451.75,Revenue,British Gas,http://statistics.data.gov.uk/id/local-authority/23UE,http://id.spending.esd.org.uk/Dataset/23UE/2,http://id.spending.esd.org.uk/Payment/23UE/313483,http://id.spending.esd.org.uk/ExpenditureLine/23UE/313483_1,,,http://id.spending.esd.org.uk/Supplier/23UE/british-gas,,,,,
Gloucester City Council,23UE,N/A,Buildings Insurance,3800,Tourism Marketing,13/12/10,312533,606.57,Revenue,P W Fido & Associates,http://statistics.data.gov.uk/id/local-authority/23UE,http://id.spending.esd.org.uk/Dataset/23UE/2,http://id.spending.esd.org.uk/Payment/23UE/312533,http://id.spending.esd.org.uk/ExpenditureLine/23UE/312533_1,,,http://id.spending.esd.org.uk/Supplier/23UE/p-w-fido-associates,,,,,
Gloucester City Council,23UE,N/A,Buildings Insurance,3800,Tourism Marketing,08/12/10,312238,5725,Revenue,P W Fido & Associates,http://statistics.data.gov.uk/id/local-authority/23UE,http://id.spending.esd.org.uk/Dataset/23UE/2,http://id.spending.esd.org.uk/Payment/23UE/312238,http://id.spending.esd.org.uk/ExpenditureLine/23UE/312238_1,,,http://id.spending.esd.org.uk/Supplier/23UE/p-w-fido-associates,,,,,
Gloucester City Council,23UE,N/A,Purch Vehicles/M. Plant <?5000,4000,Cemeteries,17/12/10,312952,840,Revenue,Clive Barford Ltd,http://statistics.data.gov.uk/id/local-authority/23UE,http://id.spending.esd.org.uk/Dataset/23UE/2,http://id.spending.esd.org.uk/Payment/23UE/312952,http://id.spending.esd.org.uk/ExpenditureLine/23UE/312952_1,,,http://id.spending.esd.org.uk/Supplier/23UE/clive-barford-ltd,,,,,
Gloucester City Council,23UE,N/A,Major R And M - Vehicles,4010,Countryside Unit,20/12/10,312767,1714.07,Revenue,Lister Wilder Ltd,http://statistics.data.gov.uk/id/local-authority/23UE,http://id.spending.esd.org.uk/Dataset/23UE/2,http://id.spending.esd.org.uk/Payment/23UE/312767,http://id.spending.esd.org.uk/ExpenditureLine/23UE/312767_1,,,http://id.spending.esd.org.uk/Supplier/23UE/lister-wilder-ltd,,,,,
Gloucester City Council,23UE,N/A,Routine R And M - Vehicles,4011,Cemeteries,10/12/10,312507,656.23,Revenue,T H White Ltd,http://statistics.data.gov.uk/id/local-authority/23UE,http://id.spending.esd.org.uk/Dataset/23UE/2,http://id.spending.esd.org.uk/Payment/23UE/312507,http://id.spending.esd.org.uk/ExpenditureLine/23UE/312507_1,,,http://id.spending.esd.org.uk/Supplier/23UE/t-h-white-ltd,,,,,
Gloucester City Council,23UE,N/A,Routine R And M - Vehicles,4011,Cemeteries,14/12/10,312582,527.17,Revenue,T H White Ltd,http://statistics.data.gov.uk/id/local-authority/23UE,http://id.spending.esd.org.uk/Dataset/23UE/2,http://id.spending.esd.org.uk/Payment/23UE/312582,http://id.spending.esd.org.uk/ExpenditureLine/23UE/312582_1,,,http://id.spending.esd.org.uk/Supplier/23UE/t-h-white-ltd,,,,,
Gloucester City Council,23UE,N/A,Oper. Leases -Vehs/M. Plant,4054,Director Resources,20/12/10,313121,684.5,Revenue,Malvern Hills District Council,http://statistics.data.gov.uk/id/local-authority/23UE,http://id.spending.esd.org.uk/Dataset/23UE/2,http://id.spending.esd.org.uk/Payment/23UE/313121,http://id.spending.esd.org.uk/ExpenditureLine/23UE/313121_1,,,http://id.spending.esd.org.uk/Supplier/23UE/malvern-hills-district-council,,,,,
Gloucester City Council,23UE,N/A,Office Equipment <?5000,5010,Licences,03/12/10,311719,1148.06,Revenue,Dell Computers Corporation Ltd,http://statistics.data.gov.uk/id/local-authority/23UE,http://id.spending.esd.org.uk/Dataset/23UE/2,http://id.spending.esd.org.uk/Payment/23UE/311719,http://id.spending.esd.org.uk/ExpenditureLine/23UE/311719_1,,,http://id.spending.esd.org.uk/Supplier/23UE/dell-computers-corporation-ltd,,,,,
Gloucester City Council,23UE,N/A,Operational Equipment <?5000,5012,Folk Museum,04/01/11,312595,769.2,Revenue,Dell Computers Corporation Ltd,http://statistics.data.gov.uk/id/local-authority/23UE,http://id.spending.esd.org.uk/Dataset/23UE/2,http://id.spending.esd.org.uk/Payment/23UE/312595,http://id.spending.esd.org.uk/ExpenditureLine/23UE/312595_1,,,http://id.spending.esd.org.uk/Supplier/23UE/dell-computers-corporation-ltd,,,,,
Gloucester City Council,23UE,N/A,Hire Of Equipment,5020,Printing / Photocopying Servs,14/12/10,312594,765.13,Revenue,Danwood,http://statistics.data.gov.uk/id/local-authority/23UE,http://id.spending.esd.org.uk/Dataset/23UE/2,http://id.spending.esd.org.uk/Payment/23UE/312594,http://id.spending.esd.org.uk/ExpenditureLine/23UE/312594_1,,,http://id.spending.esd.org.uk/Supplier/23UE/danwood,,,,,
Gloucester City Council,23UE,N/A,Maintenance Of Equipment,5030,Shopmobility,15/12/10,312433,661.08,Revenue,Disabled Care & Mobility,http://statistics.data.gov.uk/id/local-authority/23UE,http://id.spending.esd.org.uk/Dataset/23UE/2,http://id.spending.esd.org.uk/Payment/23UE/312433,http://id.spending.esd.org.uk/ExpenditureLine/23UE/312433_1,,,http://id.spending.esd.org.uk/Supplier/23UE/disabled-care-mobility,,,,,
Gloucester City Council,23UE,N/A,Maintenance Of Equipment,5030,Guildhall Arts Centre,22/12/10,313236,-25,Revenue,Inta Sound,http://statistics.data.gov.uk/id/local-authority/23UE,http://id.spending.esd.org.uk/Dataset/23UE/2,http://id.spending.esd.org.uk/Payment/23UE/313236,http://id.spending.esd.org.uk/ExpenditureLine/23UE/313236_1,,,http://id.spending.esd.org.uk/Supplier/23UE/inta-sound,,,,,
Gloucester City Council,23UE,N/A,Trade Refuse Sacks,5040,Retail Market - Landlord,04/01/11,313426,752,Revenue,Barnwood Shopfitting Ltd,http://statistics.data.gov.uk/id/local-authority/23UE,http://id.spending.esd.org.uk/Dataset/23UE/2,http://id.spending.esd.org.uk/Payment/23UE/313426,http://id.spending.esd.org.uk/ExpenditureLine/23UE/313426_1,,,http://id.spending.esd.org.uk/Supplier/23UE/barnwood-shopfitting-ltd,,,,,
Gloucester City Council,23UE,N/A,Publications,5060,Internal Audit,22/12/10,313248,660,Revenue,Cipfa Business Limited,http://statistics.data.gov.uk/id/local-authority/23UE,http://id.spending.esd.org.uk/Dataset/23UE/2,http://id.spending.esd.org.uk/Payment/23UE/313248,http://id.spending.esd.org.uk/ExpenditureLine/23UE/313248_1,,,http://id.spending.esd.org.uk/Supplier/23UE/cipfa-business-limited,,,,,
Gloucester City Council,23UE,N/A,Publications,5060,Financial Services,04/01/11,313463,500,Revenue,Cipfa Business Limited,http://statistics.data.gov.uk/id/local-authority/23UE,http://id.spending.esd.org.uk/Dataset/23UE/2,http://id.spending.esd.org.uk/Payment/23UE/313463,http://id.spending.esd.org.uk/ExpenditureLine/23UE/313463_1,,,http://id.spending.esd.org.uk/Supplier/23UE/cipfa-business-limited,,,,,
Gloucester City Council,23UE,N/A,Operational Materials,5070,Cemeteries,15/12/10,312757,1110,Revenue,King Builders (Gloucester) Ltd,http://statistics.data.gov.uk/id/local-authority/23UE,http://id.spending.esd.org.uk/Dataset/23UE/2,http://id.spending.esd.org.uk/Payment/23UE/312757,http://id.spending.esd.org.uk/ExpenditureLine/23UE/312757_1,,,http://id.spending.esd.org.uk/Supplier/23UE/king-builders-gloucester-ltd,,,,,
Gloucester City Council,23UE,N/A,Materials For Sale,5080,Tourism Marketing,07/12/10,11246,1398.06,Revenue,Rob Rowland,http://statistics.data.gov.uk/id/local-authority/23UE,http://id.spending.esd.org.uk/Dataset/23UE/2,http://id.spending.esd.org.uk/Payment/23UE/11246,http://id.spending.esd.org.uk/ExpenditureLine/23UE/11246_1,,,http://id.spending.esd.org.uk/Supplier/23UE/rob-rowland,,,,,
Gloucester City Council,23UE,N/A,Materials For Sale,5080,Tic Rovercard Sales,07/12/10,312101,11536,Revenue,Stagecoach Services Ltd*,http://statistics.data.gov.uk/id/local-authority/23UE,http://id.spending.esd.org.uk/Dataset/23UE/2,http://id.spending.esd.org.uk/Payment/23UE/312101,http://id.spending.esd.org.uk/ExpenditureLine/23UE/312101_1,,,http://id.spending.esd.org.uk/Supplier/23UE/stagecoach-services-ltd,,,,,
Gloucester City Council,23UE,N/A,Materials For Sale,5080,Tic Theatre Ticket Sales,22/12/10,312794,530,Revenue,Royal British Legion,http://statistics.data.gov.uk/id/local-authority/23UE,http://id.spending.esd.org.uk/Dataset/23UE/2,http://id.spending.esd.org.uk/Payment/23UE/312794,http://id.spending.esd.org.uk/ExpenditureLine/23UE/312794_1,,,http://id.spending.esd.org.uk/Supplier/23UE/royal-british-legion,,,,,
Gloucester City Council,23UE,N/A,Materials For Sale,5080,Tic Coach Tickets,07/12/10,312241,4109.6,Revenue,Marchants Coaches Ltd,http://statistics.data.gov.uk/id/local-authority/23UE,http://id.spending.esd.org.uk/Dataset/23UE/2,http://id.spending.esd.org.uk/Payment/23UE/312241,http://id.spending.esd.org.uk/ExpenditureLine/23UE/312241_1,,,http://id.spending.esd.org.uk/Supplier/23UE/marchants-coaches-ltd,,,,,
Gloucester City Council,23UE,N/A,Materials For Sale,5080,Tic Theatre Ticket Sales,09/12/10,312429,13358.35,Revenue,National Express Ltd,http://statistics.data.gov.uk/id/local-authority/23UE,http://id.spending.esd.org.uk/Dataset/23UE/2,http://id.spending.esd.org.uk/Payment/23UE/312429,http://id.spending.esd.org.uk/ExpenditureLine/23UE/312429_1,,,http://id.spending.esd.org.uk/Supplier/23UE/national-express-ltd,,,,,
Gloucester City Council,23UE,N/A,Catering Provisions -Food,5110,Docks Complex - Catering Servs,17/12/10,312468,545.77,Revenue,3663,http://statistics.data.gov.uk/id/local-authority/23UE,http://id.spending.esd.org.uk/Dataset/23UE/2,http://id.spending.esd.org.uk/Payment/23UE/312468,http://id.spending.esd.org.uk/ExpenditureLine/23UE/312468_1,,,http://id.spending.esd.org.uk/Supplier/23UE/3663,,,,,
Gloucester City Council,23UE,N/A,Catering Provisions -Food,5110,Docks Complex - Catering Servs,10/12/10,312058,536.7,Revenue,3663,http://statistics.data.gov.uk/id/local-authority/23UE,http://id.spending.esd.org.uk/Dataset/23UE/2,http://id.spending.esd.org.uk/Payment/23UE/312058,http://id.spending.esd.org.uk/ExpenditureLine/23UE/312058_1,,,http://id.spending.esd.org.uk/Supplier/23UE/3663,,,,,
Gloucester City Council,23UE,N/A,Catering Provisions -Food,5110,Docks Complex - Catering Servs,10/12/10,312056,-11.11,Revenue,3663,http://statistics.data.gov.uk/id/local-authority/23UE,http://id.spending.esd.org.uk/Dataset/23UE/2,http://id.spending.esd.org.uk/Payment/23UE/312056,http://id.spending.esd.org.uk/ExpenditureLine/23UE/312056_1,,,http://id.spending.esd.org.uk/Supplier/23UE/3663,,,,,
Gloucester City Council,23UE,N/A,Catering Provisions -Liquor,5111,Guildhall Bar And Caf?,06/12/10,312095,1178.98,Revenue,Cellar Supplies Cheltenham Ltd,http://statistics.data.gov.uk/id/local-authority/23UE,http://id.spending.esd.org.uk/Dataset/23UE/2,http://id.spending.esd.org.uk/Payment/23UE/312095,http://id.spending.esd.org.uk/ExpenditureLine/23UE/312095_1,,,http://id.spending.esd.org.uk/Supplier/23UE/cellar-supplies-cheltenham-ltd,,,,,
Gloucester City Council,23UE,N/A,Catering Provisions -Liquor,5111,Guildhall Bar And Caf?,20/12/10,312769,3103.57,Revenue,Cellar Supplies Cheltenham Ltd,http://statistics.data.gov.uk/id/local-authority/23UE,http://id.spending.esd.org.uk/Dataset/23UE/2,http://id.spending.esd.org.uk/Payment/23UE/312769,http://id.spending.esd.org.uk/ExpenditureLine/23UE/312769_1,,,http://id.spending.esd.org.uk/Supplier/23UE/cellar-supplies-cheltenham-ltd,,,,,
Gloucester City Council,23UE,N/A,Catering Provisions -Liquor,5111,Guildhall Bar And Caf?,06/12/10,312094,1309.91,Revenue,Cellar Supplies Cheltenham Ltd,http://statistics.data.gov.uk/id/local-authority/23UE,http://id.spending.esd.org.uk/Dataset/23UE/2,http://id.spending.esd.org.uk/Payment/23UE/312094,http://id.spending.esd.org.uk/ExpenditureLine/23UE/312094_1,,,http://id.spending.esd.org.uk/Supplier/23UE/cellar-supplies-cheltenham-ltd,,,,,
Gloucester City Council,23UE,N/A,Catering Provisions -Liquor,5111,Guildhall Bar And Caf?,02/12/10,311881,1849.16,Revenue,Cellar Supplies Cheltenham Ltd,http://statistics.data.gov.uk/id/local-authority/23UE,http://id.spending.esd.org.uk/Dataset/23UE/2,http://id.spending.esd.org.uk/Payment/23UE/311881,http://id.spending.esd.org.uk/ExpenditureLine/23UE/311881_1,,,http://id.spending.esd.org.uk/Supplier/23UE/cellar-supplies-cheltenham-ltd,,,,,
Gloucester City Council,23UE,N/A,Catering Provisions -Liquor,5111,Guildhall Bar And Caf?,20/12/10,312185,-20.03,Revenue,Cellar Supplies Cheltenham Ltd,http://statistics.data.gov.uk/id/local-authority/23UE,http://id.spending.esd.org.uk/Dataset/23UE/2,http://id.spending.esd.org.uk/Payment/23UE/312185,http://id.spending.esd.org.uk/ExpenditureLine/23UE/312185_1,,,http://id.spending.esd.org.uk/Supplier/23UE/cellar-supplies-cheltenham-ltd,,,,,
Gloucester City Council,23UE,N/A,Paper And Printing Materials,5321,Printing / Photocopying Servs,23/12/10,313089,850,Revenue,Premierbeswick,http://statistics.data.gov.uk/id/local-authority/23UE,http://id.spending.esd.org.uk/Dataset/23UE/2,http://id.spending.esd.org.uk/Payment/23UE/313089,http://id.spending.esd.org.uk/ExpenditureLine/23UE/313089_1,,,http://id.spending.esd.org.uk/Supplier/23UE/premierbeswick,,,,,
Gloucester City Council,23UE,N/A,Paper And Printing Materials,5321,Printing / Photocopying Servs,04/01/11,313364,699,Revenue,In2print Ltd,http://statistics.data.gov.uk/id/local-authority/23UE,http://id.spending.esd.org.uk/Dataset/23UE/2,http://id.spending.esd.org.uk/Payment/23UE/313364,http://id.spending.esd.org.uk/ExpenditureLine/23UE/313364_1,,,http://id.spending.esd.org.uk/Supplier/23UE/in2print-ltd,,,,,
Gloucester City Council,23UE,N/A,Consultants Fees,5349,Director Resources,04/01/11,313423,2100.8,Revenue,Resources Consultancy Limited,http://statistics.data.gov.uk/id/local-authority/23UE,http://id.spending.esd.org.uk/Dataset/23UE/2,http://id.spending.esd.org.uk/Payment/23UE/313423,http://id.spending.esd.org.uk/ExpenditureLine/23UE/313423_1,,,http://id.spending.esd.org.uk/Supplier/23UE/resources-consultancy-limited,,,,,
Gloucester City Council,23UE,N/A,Consultants Fees,5349,Ghurc Contribution,07/12/10,312209,5763.4,Revenue,Wragge & Co Llp,http://statistics.data.gov.uk/id/local-authority/23UE,http://id.spending.esd.org.uk/Dataset/23UE/2,http://id.spending.esd.org.uk/Payment/23UE/312209,http://id.spending.esd.org.uk/ExpenditureLine/23UE/312209_1,,,http://id.spending.esd.org.uk/Supplier/23UE/wragge-co-llp,,,,,
Gloucester City Council,23UE,N/A,Consultants Fees,5349,Treasury Management,04/01/11,313462,3000,Revenue,Sector Treasury Services Ltd,http://statistics.data.gov.uk/id/local-authority/23UE,http://id.spending.esd.org.uk/Dataset/23UE/2,http://id.spending.esd.org.uk/Payment/23UE/313462,http://id.spending.esd.org.uk/ExpenditureLine/23UE/313462_1,,,http://id.spending.esd.org.uk/Supplier/23UE/sector-treasury-services-ltd,,,,,
Gloucester City Council,23UE,N/A,Consultants Fees,5349,Kings Quarter Redevelopment,04/01/11,313424,2099.05,Revenue,Resources Consultancy Limited,http://statistics.data.gov.uk/id/local-authority/23UE,http://id.spending.esd.org.uk/Dataset/23UE/2,http://id.spending.esd.org.uk/Payment/23UE/313424,http://id.spending.esd.org.uk/ExpenditureLine/23UE/313424_1,,,http://id.spending.esd.org.uk/Supplier/23UE/resources-consultancy-limited,,,,,
Gloucester City Council,23UE,N/A,Fees For Services Received,5350,Accelerator 1 Econ Challenge F,23/12/10,312970,2000,Revenue,Gloucestershire College,http://statistics.data.gov.uk/id/local-authority/23UE,http://id.spending.esd.org.uk/Dataset/23UE/2,http://id.spending.esd.org.uk/Payment/23UE/312970,http://id.spending.esd.org.uk/ExpenditureLine/23UE/312970_1,,,http://id.spending.esd.org.uk/Supplier/23UE/gloucestershire-college,,,,,
Gloucester City Council,23UE,N/A,Fees For Services Received,5350,Investment Property,02/12/10,311925,4972.5,Revenue,Davies And Partners,http://statistics.data.gov.uk/id/local-authority/23UE,http://id.spending.esd.org.uk/Dataset/23UE/2,http://id.spending.esd.org.uk/Payment/23UE/311925,http://id.spending.esd.org.uk/ExpenditureLine/23UE/311925_1,,,http://id.spending.esd.org.uk/Supplier/23UE/davies-and-partners,,,,,
Gloucester City Council,23UE,N/A,Fees For Services Received,5350,Cattle Market Park And Ride,02/12/10,310580,2930.76,Revenue,Apcoa Parking (Uk) Ltd,http://statistics.data.gov.uk/id/local-authority/23UE,http://id.spending.esd.org.uk/Dataset/23UE/2,http://id.spending.esd.org.uk/Payment/23UE/310580,http://id.spending.esd.org.uk/ExpenditureLine/23UE/310580_1,,,http://id.spending.esd.org.uk/Supplier/23UE/apcoa-parking-uk-ltd,,,,,
Gloucester City Council,23UE,N/A,Fees For Services Received,5350,Homelessness Prevention,02/12/10,312001,500,Revenue,Cgt Lettings Ltd,http://statistics.data.gov.uk/id/local-authority/23UE,http://id.spending.esd.org.uk/Dataset/23UE/2,http://id.spending.esd.org.uk/Payment/23UE/312001,http://id.spending.esd.org.uk/ExpenditureLine/23UE/312001_1,,,http://id.spending.esd.org.uk/Supplier/23UE/cgt-lettings-ltd,,,,,
Gloucester City Council,23UE,N/A,Fees For Services Received,5350,Investment Property,02/12/10,311924,8050,Revenue,Davies And Partners,http://statistics.data.gov.uk/id/local-authority/23UE,http://id.spending.esd.org.uk/Dataset/23UE/2,http://id.spending.esd.org.uk/Payment/23UE/311924,http://id.spending.esd.org.uk/ExpenditureLine/23UE/311924_1,,,http://id.spending.esd.org.uk/Supplier/23UE/davies-and-partners,,,,,
Gloucester City Council,23UE,N/A,Fees For Services Received,5350,Marketing Gloucester Charges,20/12/10,313110,12367.9,Revenue,Smith & Williamson,http://statistics.data.gov.uk/id/local-authority/23UE,http://id.spending.esd.org.uk/Dataset/23UE/2,http://id.spending.esd.org.uk/Payment/23UE/313110,http://id.spending.esd.org.uk/ExpenditureLine/23UE/313110_1,,,http://id.spending.esd.org.uk/Supplier/23UE/smith-williamson,,,,,
Gloucester City Council,23UE,N/A,Redacted,Redacted,Redacted,03/12/10,312108,-500,,Redacted,http://statistics.data.gov.uk/id/local-authority/23UE,http://id.spending.esd.org.uk/Dataset/23UE/2,http://id.spending.esd.org.uk/Payment/23UE/312108,http://id.spending.esd.org.uk/ExpenditureLine/23UE/312108_1,,,http://id.spending.esd.org.uk/Supplier/23UE/redacted,,,,,
Gloucester City Council,23UE,N/A,Redacted,Redacted,Redacted,02/12/10,11229,1100,,Redacted,http://statistics.data.gov.uk/id/local-authority/23UE,http://id.spending.esd.org.uk/Dataset/23UE/2,http://id.spending.esd.org.uk/Payment/23UE/11229,http://id.spending.esd.org.uk/ExpenditureLine/23UE/11229_1,,,http://id.spending.esd.org.uk/Supplier/23UE/redacted,,,,,
Gloucester City Council,23UE,N/A,Redacted,Redacted,Redacted,09/12/10,312161,500,,Redacted,http://statistics.data.gov.uk/id/local-authority/23UE,http://id.spending.esd.org.uk/Dataset/23UE/2,http://id.spending.esd.org.uk/Payment/23UE/312161,http://id.spending.esd.org.uk/ExpenditureLine/23UE/312161_1,,,http://id.spending.esd.org.uk/Supplier/23UE/redacted,,,,,
Gloucester City Council,23UE,N/A,Redacted,Redacted,Redacted,14/12/10,312658,500,,Redacted,http://statistics.data.gov.uk/id/local-authority/23UE,http://id.spending.esd.org.uk/Dataset/23UE/2,http://id.spending.esd.org.uk/Payment/23UE/312658,http://id.spending.esd.org.uk/ExpenditureLine/23UE/312658_1,,,http://id.spending.esd.org.uk/Supplier/23UE/redacted,,,,,
Gloucester City Council,23UE,N/A,Fees For Services Received,5350,Accelerator 1 Econ Challenge F,23/12/10,312971,2386.78,Revenue,Gloucestershire College,http://statistics.data.gov.uk/id/local-authority/23UE,http://id.spending.esd.org.uk/Dataset/23UE/2,http://id.spending.esd.org.uk/Payment/23UE/312971,http://id.spending.esd.org.uk/ExpenditureLine/23UE/312971_1,,,http://id.spending.esd.org.uk/Supplier/23UE/gloucestershire-college,,,,,
Gloucester City Council,23UE,N/A,Fees For Services Received,5350,Kings Quarter Redevelopment,14/12/10,312593,2433.16,Revenue,Geldards Llp,http://statistics.data.gov.uk/id/local-authority/23UE,http://id.spending.esd.org.uk/Dataset/23UE/2,http://id.spending.esd.org.uk/Payment/23UE/312593,http://id.spending.esd.org.uk/ExpenditureLine/23UE/312593_1,,,http://id.spending.esd.org.uk/Supplier/23UE/geldards-llp,,,,,
Gloucester City Council,23UE,N/A,Fees For Services Received,5350,Homelessness Prevention,17/12/10,313011,500,Revenue,Nicholas Lee,http://statistics.data.gov.uk/id/local-authority/23UE,http://id.spending.esd.org.uk/Dataset/23UE/2,http://id.spending.esd.org.uk/Payment/23UE/313011,http://id.spending.esd.org.uk/ExpenditureLine/23UE/313011_1,,,http://id.spending.esd.org.uk/Supplier/23UE/nicholas-lee,,,,,
Gloucester City Council,23UE,N/A,Fees For Services Received,5350,Drivers Budget,15/12/10,312072,545.11,Revenue,Trophy World,http://statistics.data.gov.uk/id/local-authority/23UE,http://id.spending.esd.org.uk/Dataset/23UE/2,http://id.spending.esd.org.uk/Payment/23UE/312072,http://id.spending.esd.org.uk/ExpenditureLine/23UE/312072_1,,,http://id.spending.esd.org.uk/Supplier/23UE/trophy-world,,,,,
Gloucester City Council,23UE,N/A,Fees For Services Received,5350,Homelessness Prevention,17/12/10,313117,-500,Revenue,Dean Badhams-Williams,http://statistics.data.gov.uk/id/local-authority/23UE,http://id.spending.esd.org.uk/Dataset/23UE/2,http://id.spending.esd.org.uk/Payment/23UE/313117,http://id.spending.esd.org.uk/ExpenditureLine/23UE/313117_1,,,http://id.spending.esd.org.uk/Supplier/23UE/dean-badhams-williams,,,,,
Gloucester City Council,23UE,N/A,Fees For Services Received,5350,Gf Lifelinks,02/12/10,312005,5271,Revenue,Gloucester City Homes,http://statistics.data.gov.uk/id/local-authority/23UE,http://id.spending.esd.org.uk/Dataset/23UE/2,http://id.spending.esd.org.uk/Payment/23UE/312005,http://id.spending.esd.org.uk/ExpenditureLine/23UE/312005_1,,,http://id.spending.esd.org.uk/Supplier/23UE/gloucester-city-homes,,,,,
Gloucester City Council,23UE,N/A,Fees For Services Received,5350,Accelerator 1 Econ Challenge F,23/12/10,312974,9000,Revenue,Gloucestershire College,http://statistics.data.gov.uk/id/local-authority/23UE,http://id.spending.esd.org.uk/Dataset/23UE/2,http://id.spending.esd.org.uk/Payment/23UE/312974,http://id.spending.esd.org.uk/ExpenditureLine/23UE/312974_1,,,http://id.spending.esd.org.uk/Supplier/23UE/gloucestershire-college,,,,,
Gloucester City Council,23UE,N/A,Fees For Services Received,5350,Corporate Expenses,08/12/10,312356,756.5,Revenue,Q Learning,http://statistics.data.gov.uk/id/local-authority/23UE,http://id.spending.esd.org.uk/Dataset/23UE/2,http://id.spending.esd.org.uk/Payment/23UE/312356,http://id.spending.esd.org.uk/ExpenditureLine/23UE/312356_1,,,http://id.spending.esd.org.uk/Supplier/23UE/q-learning,,,,,
Gloucester City Council,23UE,N/A,Fees For Services Received,5350,Investment Property,02/12/10,311928,4869.62,Revenue,Davies And Partners,http://statistics.data.gov.uk/id/local-authority/23UE,http://id.spending.esd.org.uk/Dataset/23UE/2,http://id.spending.esd.org.uk/Payment/23UE/311928,http://id.spending.esd.org.uk/ExpenditureLine/23UE/311928_1,,,http://id.spending.esd.org.uk/Supplier/23UE/davies-and-partners,,,,,
Gloucester City Council,23UE,N/A,Fees For Services Received,5350,Off Street Car Parks,02/12/10,310580,41517.18,Revenue,Apcoa Parking (Uk) Ltd,http://statistics.data.gov.uk/id/local-authority/23UE,http://id.spending.esd.org.uk/Dataset/23UE/2,http://id.spending.esd.org.uk/Payment/23UE/310580,http://id.spending.esd.org.uk/ExpenditureLine/23UE/310580_2,,,http://id.spending.esd.org.uk/Supplier/23UE/apcoa-parking-uk-ltd,,,,,
Gloucester City Council,23UE,N/A,Redacted,Redacted,Redacted,26/01/11,312109,500,,Redacted,http://statistics.data.gov.uk/id/local-authority/23UE,http://id.spending.esd.org.uk/Dataset/23UE/2,http://id.spending.esd.org.uk/Payment/23UE/312109,http://id.spending.esd.org.uk/ExpenditureLine/23UE/312109_1,,,http://id.spending.esd.org.uk/Supplier/23UE/redacted,,,,,
Gloucester City Council,23UE,N/A,Fees For Services Received,5350,Crematorium,02/12/10,312002,965.92,Revenue,Dr D J Conaty & Partners,http://statistics.data.gov.uk/id/local-authority/23UE,http://id.spending.esd.org.uk/Dataset/23UE/2,http://id.spending.esd.org.uk/Payment/23UE/312002,http://id.spending.esd.org.uk/ExpenditureLine/23UE/312002_1,,,http://id.spending.esd.org.uk/Supplier/23UE/dr-d-j-conaty-partners,,,,,
Gloucester City Council,23UE,N/A,Fees For Services Received,5350,Docks Complex - Castlemeads Cp,02/12/10,310580,3052.88,Revenue,Apcoa Parking (Uk) Ltd,http://statistics.data.gov.uk/id/local-authority/23UE,http://id.spending.esd.org.uk/Dataset/23UE/2,http://id.spending.esd.org.uk/Payment/23UE/310580,http://id.spending.esd.org.uk/ExpenditureLine/23UE/310580_3,,,http://id.spending.esd.org.uk/Supplier/23UE/apcoa-parking-uk-ltd,,,,,
Gloucester City Council,23UE,N/A,Fees For Services Received,5350,Blackfriars Carpark,02/12/10,310580,3052.88,Revenue,Apcoa Parking (Uk) Ltd,http://statistics.data.gov.uk/id/local-authority/23UE,http://id.spending.esd.org.uk/Dataset/23UE/2,http://id.spending.esd.org.uk/Payment/23UE/310580,http://id.spending.esd.org.uk/ExpenditureLine/23UE/310580_4,,,http://id.spending.esd.org.uk/Supplier/23UE/apcoa-parking-uk-ltd,,,,,
Gloucester City Council,23UE,N/A,Fees For Services Received,5350,Registration Of Electors,17/12/10,313010,8218.35,Revenue,Inland Revenue,http://statistics.data.gov.uk/id/local-authority/23UE,http://id.spending.esd.org.uk/Dataset/23UE/2,http://id.spending.esd.org.uk/Payment/23UE/313010,http://id.spending.esd.org.uk/ExpenditureLine/23UE/313010_1,,,http://id.spending.esd.org.uk/Supplier/23UE/inland-revenue,,,,,
Gloucester City Council,23UE,N/A,Fees For Services Received,5350,Planning Delivery Grant,04/01/11,312645,4625,Revenue,Worcestershire Wildlife Consultancy,http://statistics.data.gov.uk/id/local-authority/23UE,http://id.spending.esd.org.uk/Dataset/23UE/2,http://id.spending.esd.org.uk/Payment/23UE/312645,http://id.spending.esd.org.uk/ExpenditureLine/23UE/312645_1,,,http://id.spending.esd.org.uk/Supplier/23UE/worcestershire-wildlife-consultancy,,,,,
Gloucester City Council,23UE,N/A,Redacted,Redacted,Redacted,17/12/10,313078,500,,Redacted,http://statistics.data.gov.uk/id/local-authority/23UE,http://id.spending.esd.org.uk/Dataset/23UE/2,http://id.spending.esd.org.uk/Payment/23UE/313078,http://id.spending.esd.org.uk/ExpenditureLine/23UE/313078_1,,,http://id.spending.esd.org.uk/Supplier/23UE/redacted,,,,,
Gloucester City Council,23UE,N/A,Fees For Services Received,5350,Concessionary Fares,03/12/10,19480,2008,Revenue,Gloucester City Council,http://statistics.data.gov.uk/id/local-authority/23UE,http://id.spending.esd.org.uk/Dataset/23UE/2,http://id.spending.esd.org.uk/Payment/23UE/19480,http://id.spending.esd.org.uk/ExpenditureLine/23UE/19480_1,,,http://id.spending.esd.org.uk/Supplier/23UE/gloucester-city-council,,,,,
Gloucester City Council,23UE,N/A,Fees For Services Received,5350,Hackney Carriages,02/12/10,311660,500,Revenue,Mouchel Ltd,http://statistics.data.gov.uk/id/local-authority/23UE,http://id.spending.esd.org.uk/Dataset/23UE/2,http://id.spending.esd.org.uk/Payment/23UE/311660,http://id.spending.esd.org.uk/ExpenditureLine/23UE/311660_1,,,http://id.spending.esd.org.uk/Supplier/23UE/mouchel-ltd,,,,,
Gloucester City Council,23UE,N/A,Redacted,Redacted,Redacted,03/12/10,312106,500,,Redacted,http://statistics.data.gov.uk/id/local-authority/23UE,http://id.spending.esd.org.uk/Dataset/23UE/2,http://id.spending.esd.org.uk/Payment/23UE/312106,http://id.spending.esd.org.uk/ExpenditureLine/23UE/312106_1,,,http://id.spending.esd.org.uk/Supplier/23UE/redacted,,,,,
Gloucester City Council,23UE,N/A,Redacted,Redacted,Redacted,21/12/10,312163,500,,Redacted,http://statistics.data.gov.uk/id/local-authority/23UE,http://id.spending.esd.org.uk/Dataset/23UE/2,http://id.spending.esd.org.uk/Payment/23UE/312163,http://id.spending.esd.org.uk/ExpenditureLine/23UE/312163_1,,,http://id.spending.esd.org.uk/Supplier/23UE/redacted,,,,,
Gloucester City Council,23UE,N/A,Redacted,Redacted,Redacted,07/12/10,312249,-325.53,,Redacted,http://statistics.data.gov.uk/id/local-authority/23UE,http://id.spending.esd.org.uk/Dataset/23UE/2,http://id.spending.esd.org.uk/Payment/23UE/312249,http://id.spending.esd.org.uk/ExpenditureLine/23UE/312249_1,,,http://id.spending.esd.org.uk/Supplier/23UE/redacted,,,,,
Gloucester City Council,23UE,N/A,Fees For Services Received,5350,Crematorium,02/12/10,11231,902.08,Revenue,Dr C M Stretton,http://statistics.data.gov.uk/id/local-authority/23UE,http://id.spending.esd.org.uk/Dataset/23UE/2,http://id.spending.esd.org.uk/Payment/23UE/11231,http://id.spending.esd.org.uk/ExpenditureLine/23UE/11231_1,,,http://id.spending.esd.org.uk/Supplier/23UE/dr-c-m-stretton,,,,,
Gloucester City Council,23UE,N/A,Redacted,Redacted,Redacted,17/12/10,312943,500,,Redacted,http://statistics.data.gov.uk/id/local-authority/23UE,http://id.spending.esd.org.uk/Dataset/23UE/2,http://id.spending.esd.org.uk/Payment/23UE/312943,http://id.spending.esd.org.uk/ExpenditureLine/23UE/312943_1,,,http://id.spending.esd.org.uk/Supplier/23UE/redacted,,,,,
Gloucester City Council,23UE,N/A,Security Services Fees,5351,Corporate Income,04/01/11,313421,566.4,Revenue,G4s Cash Solutions (Uk) Ltd,http://statistics.data.gov.uk/id/local-authority/23UE,http://id.spending.esd.org.uk/Dataset/23UE/2,http://id.spending.esd.org.uk/Payment/23UE/313421,http://id.spending.esd.org.uk/ExpenditureLine/23UE/313421_1,,,http://id.spending.esd.org.uk/Supplier/23UE/g4s-cash-solutions-uk-ltd,,,,,
Gloucester City Council,23UE,N/A,Redacted,Redacted,Redacted,15/12/10,312742,2500,,Redacted,http://statistics.data.gov.uk/id/local-authority/23UE,http://id.spending.esd.org.uk/Dataset/23UE/2,http://id.spending.esd.org.uk/Payment/23UE/312742,http://id.spending.esd.org.uk/ExpenditureLine/23UE/312742_1,,,http://id.spending.esd.org.uk/Supplier/23UE/redacted,,,,,
Gloucester City Council,23UE,N/A,Redacted,Redacted,Redacted,02/12/10,11227,714,,Redacted,http://statistics.data.gov.uk/id/local-authority/23UE,http://id.spending.esd.org.uk/Dataset/23UE/2,http://id.spending.esd.org.uk/Payment/23UE/11227,http://id.spending.esd.org.uk/ExpenditureLine/23UE/11227_1,,,http://id.spending.esd.org.uk/Supplier/23UE/redacted,,,,,
Gloucester City Council,23UE,N/A,Redacted,Redacted,Redacted,02/12/10,11220,1237.31,,Redacted,http://statistics.data.gov.uk/id/local-authority/23UE,http://id.spending.esd.org.uk/Dataset/23UE/2,http://id.spending.esd.org.uk/Payment/23UE/11220,http://id.spending.esd.org.uk/ExpenditureLine/23UE/11220_1,,,http://id.spending.esd.org.uk/Supplier/23UE/redacted,,,,,
Gloucester City Council,23UE,N/A,Redacted,Redacted,Redacted,02/12/10,311988,732.51,,Redacted,http://statistics.data.gov.uk/id/local-authority/23UE,http://id.spending.esd.org.uk/Dataset/23UE/2,http://id.spending.esd.org.uk/Payment/23UE/311988,http://id.spending.esd.org.uk/ExpenditureLine/23UE/311988_1,,,http://id.spending.esd.org.uk/Supplier/23UE/redacted,,,,,
Gloucester City Council,23UE,N/A,Redacted,Redacted,Redacted,23/12/10,313323,750,,Redacted,http://statistics.data.gov.uk/id/local-authority/23UE,http://id.spending.esd.org.uk/Dataset/23UE/2,http://id.spending.esd.org.uk/Payment/23UE/313323,http://id.spending.esd.org.uk/ExpenditureLine/23UE/313323_1,,,http://id.spending.esd.org.uk/Supplier/23UE/redacted,,,,,
Gloucester City Council,23UE,N/A,Redacted,Redacted,Redacted,02/12/10,11223,663,,Redacted,http://statistics.data.gov.uk/id/local-authority/23UE,http://id.spending.esd.org.uk/Dataset/23UE/2,http://id.spending.esd.org.uk/Payment/23UE/11223,http://id.spending.esd.org.uk/ExpenditureLine/23UE/11223_1,,,http://id.spending.esd.org.uk/Supplier/23UE/redacted,,,,,
Gloucester City Council,23UE,N/A,Redacted,Redacted,Redacted,15/12/10,312803,4793.88,,Redacted,http://statistics.data.gov.uk/id/local-authority/23UE,http://id.spending.esd.org.uk/Dataset/23UE/2,http://id.spending.esd.org.uk/Payment/23UE/312803,http://id.spending.esd.org.uk/ExpenditureLine/23UE/312803_1,,,http://id.spending.esd.org.uk/Supplier/23UE/redacted,,,,,
Gloucester City Council,23UE,N/A,Redacted,Redacted,Redacted,04/01/11,313496,2103.13,,Redacted,http://statistics.data.gov.uk/id/local-authority/23UE,http://id.spending.esd.org.uk/Dataset/23UE/2,http://id.spending.esd.org.uk/Payment/23UE/313496,http://id.spending.esd.org.uk/ExpenditureLine/23UE/313496_1,,,http://id.spending.esd.org.uk/Supplier/23UE/redacted,,,,,
Gloucester City Council,23UE,N/A,Redacted,Redacted,Redacted,02/12/10,11221,1432.25,,Redacted,http://statistics.data.gov.uk/id/local-authority/23UE,http://id.spending.esd.org.uk/Dataset/23UE/2,http://id.spending.esd.org.uk/Payment/23UE/11221,http://id.spending.esd.org.uk/ExpenditureLine/23UE/11221_1,,,http://id.spending.esd.org.uk/Supplier/23UE/redacted,,,,,
Gloucester City Council,23UE,N/A,Redacted,Redacted,Redacted,10/12/10,312474,786.25,,Redacted,http://statistics.data.gov.uk/id/local-authority/23UE,http://id.spending.esd.org.uk/Dataset/23UE/2,http://id.spending.esd.org.uk/Payment/23UE/312474,http://id.spending.esd.org.uk/ExpenditureLine/23UE/312474_1,,,http://id.spending.esd.org.uk/Supplier/23UE/redacted,,,,,
Gloucester City Council,23UE,N/A,Redacted,Redacted,Redacted,23/12/10,313374,-50,,Redacted,http://statistics.data.gov.uk/id/local-authority/23UE,http://id.spending.esd.org.uk/Dataset/23UE/2,http://id.spending.esd.org.uk/Payment/23UE/313374,http://id.spending.esd.org.uk/ExpenditureLine/23UE/313374_1,,,http://id.spending.esd.org.uk/Supplier/23UE/redacted,,,,,
Gloucester City Council,23UE,N/A,Redacted,Redacted,Redacted,02/12/10,11222,765,,Redacted,http://statistics.data.gov.uk/id/local-authority/23UE,http://id.spending.esd.org.uk/Dataset/23UE/2,http://id.spending.esd.org.uk/Payment/23UE/11222,http://id.spending.esd.org.uk/ExpenditureLine/23UE/11222_1,,,http://id.spending.esd.org.uk/Supplier/23UE/redacted,,,,,
Gloucester City Council,23UE,N/A,Redacted,Redacted,Redacted,09/12/10,312425,1766.71,,Redacted,http://statistics.data.gov.uk/id/local-authority/23UE,http://id.spending.esd.org.uk/Dataset/23UE/2,http://id.spending.esd.org.uk/Payment/23UE/312425,http://id.spending.esd.org.uk/ExpenditureLine/23UE/312425_1,,,http://id.spending.esd.org.uk/Supplier/23UE/redacted,,,,,
Gloucester City Council,23UE,N/A,Redacted,Redacted,Redacted,16/12/10,11308,874.46,,Redacted,http://statistics.data.gov.uk/id/local-authority/23UE,http://id.spending.esd.org.uk/Dataset/23UE/2,http://id.spending.esd.org.uk/Payment/23UE/11308,http://id.spending.esd.org.uk/ExpenditureLine/23UE/11308_1,,,http://id.spending.esd.org.uk/Supplier/23UE/redacted,,,,,
Gloucester City Council,23UE,N/A,Redacted,Redacted,Redacted,07/12/10,312249,1750,,Redacted,http://statistics.data.gov.uk/id/local-authority/23UE,http://id.spending.esd.org.uk/Dataset/23UE/2,http://id.spending.esd.org.uk/Payment/23UE/312249,http://id.spending.esd.org.uk/ExpenditureLine/23UE/312249_2,,,http://id.spending.esd.org.uk/Supplier/23UE/redacted,,,,,
Gloucester City Council,23UE,N/A,Court Fees,5358,Council Tax Collection,14/12/10,312592,1653,Revenue,Co-Operative Bank,http://statistics.data.gov.uk/id/local-authority/23UE,http://id.spending.esd.org.uk/Dataset/23UE/2,http://id.spending.esd.org.uk/Payment/23UE/312592,http://id.spending.esd.org.uk/ExpenditureLine/23UE/312592_1,,,http://id.spending.esd.org.uk/Supplier/23UE/co-operative-bank,,,,,
Gloucester City Council,23UE,N/A,Coaching Fees,5365,Seedcorn Funding,06/12/10,311936,1458.66,Revenue,Stroud District Council,http://statistics.data.gov.uk/id/local-authority/23UE,http://id.spending.esd.org.uk/Dataset/23UE/2,http://id.spending.esd.org.uk/Payment/23UE/311936,http://id.spending.esd.org.uk/ExpenditureLine/23UE/311936_1,,,http://id.spending.esd.org.uk/Supplier/23UE/stroud-district-council,,,,,
Gloucester City Council,23UE,N/A,Coaching Fees,5365,Seedcord Plus,07/12/10,312099,650,Revenue,Gloucestershire County Council,http://statistics.data.gov.uk/id/local-authority/23UE,http://id.spending.esd.org.uk/Dataset/23UE/2,http://id.spending.esd.org.uk/Payment/23UE/312099,http://id.spending.esd.org.uk/ExpenditureLine/23UE/312099_1,,,http://id.spending.esd.org.uk/Supplier/23UE/gloucestershire-county-council,,,,,
Gloucester City Council,23UE,N/A,Coaching Fees,5365,Cspan,04/01/11,312919,5068,Revenue,Aspire Sports & Cultural Trust,http://statistics.data.gov.uk/id/local-authority/23UE,http://id.spending.esd.org.uk/Dataset/23UE/2,http://id.spending.esd.org.uk/Payment/23UE/312919,http://id.spending.esd.org.uk/ExpenditureLine/23UE/312919_1,,,http://id.spending.esd.org.uk/Supplier/23UE/aspire-sports-cultural-trust,,,,,
Gloucester City Council,23UE,N/A,Clearance And Cleansing Fees,5384,Housing Works In Default,04/01/11,313428,4483.51,Revenue,Three Counties Drain Service,http://statistics.data.gov.uk/id/local-authority/23UE,http://id.spending.esd.org.uk/Dataset/23UE/2,http://id.spending.esd.org.uk/Payment/23UE/313428,http://id.spending.esd.org.uk/ExpenditureLine/23UE/313428_1,,,http://id.spending.esd.org.uk/Supplier/23UE/three-counties-drain-service,,,,,
Gloucester City Council,23UE,N/A,Postages,5400,Council Tax Collection,17/12/10,312780,511.26,Revenue,Royal Mail S.Wales & South West,http://statistics.data.gov.uk/id/local-authority/23UE,http://id.spending.esd.org.uk/Dataset/23UE/2,http://id.spending.esd.org.uk/Payment/23UE/312780,http://id.spending.esd.org.uk/ExpenditureLine/23UE/312780_1,,,http://id.spending.esd.org.uk/Supplier/23UE/royal-mail-s-wales-south-west,,,,,
Gloucester City Council,23UE,N/A,Postages,5400,Council Tax Collection,04/01/11,313437,658.73,Revenue,Royal Mail S.Wales & South West,http://statistics.data.gov.uk/id/local-authority/23UE,http://id.spending.esd.org.uk/Dataset/23UE/2,http://id.spending.esd.org.uk/Payment/23UE/313437,http://id.spending.esd.org.uk/ExpenditureLine/23UE/313437_1,,,http://id.spending.esd.org.uk/Supplier/23UE/royal-mail-s-wales-south-west,,,,,
Gloucester City Council,23UE,N/A,Postages,5400,Registration Of Electors,07/12/10,312063,562.45,Revenue,Royal Mail S.Wales & South West,http://statistics.data.gov.uk/id/local-authority/23UE,http://id.spending.esd.org.uk/Dataset/23UE/2,http://id.spending.esd.org.uk/Payment/23UE/312063,http://id.spending.esd.org.uk/ExpenditureLine/23UE/312063_1,,,http://id.spending.esd.org.uk/Supplier/23UE/royal-mail-s-wales-south-west,,,,,
Gloucester City Council,23UE,N/A,Postages,5400,Council Tax Collection,03/12/10,311994,636.93,Revenue,Royal Mail S.Wales & South West,http://statistics.data.gov.uk/id/local-authority/23UE,http://id.spending.esd.org.uk/Dataset/23UE/2,http://id.spending.esd.org.uk/Payment/23UE/311994,http://id.spending.esd.org.uk/ExpenditureLine/23UE/311994_1,,,http://id.spending.esd.org.uk/Supplier/23UE/royal-mail-s-wales-south-west,,,,,
Gloucester City Council,23UE,N/A,Postages,5400,Tic Stamp Sales,06/12/10,312160,1372.36,Revenue,Royal Mail Retail,http://statistics.data.gov.uk/id/local-authority/23UE,http://id.spending.esd.org.uk/Dataset/23UE/2,http://id.spending.esd.org.uk/Payment/23UE/312160,http://id.spending.esd.org.uk/ExpenditureLine/23UE/312160_1,,,http://id.spending.esd.org.uk/Supplier/23UE/royal-mail-retail,,,,,
Gloucester City Council,23UE,N/A,Telephones And Fax,5410,Aspire Admin Charges,16/12/10,312910,920,Revenue,Uniworld Communications Ltd,http://statistics.data.gov.uk/id/local-authority/23UE,http://id.spending.esd.org.uk/Dataset/23UE/2,http://id.spending.esd.org.uk/Payment/23UE/312910,http://id.spending.esd.org.uk/ExpenditureLine/23UE/312910_1,,,http://id.spending.esd.org.uk/Supplier/23UE/uniworld-communications-ltd,,,,,
Gloucester City Council,23UE,N/A,Telephones And Fax,5410,Contact Centre,04/01/11,313196,862.5,Revenue,Veritape Ltd,http://statistics.data.gov.uk/id/local-authority/23UE,http://id.spending.esd.org.uk/Dataset/23UE/2,http://id.spending.esd.org.uk/Payment/23UE/313196,http://id.spending.esd.org.uk/ExpenditureLine/23UE/313196_1,,,http://id.spending.esd.org.uk/Supplier/23UE/veritape-ltd,,,,,
Gloucester City Council,23UE,N/A,Telephones And Fax,5410,Docks Complex - Telephones,16/12/10,312910,3117.24,Revenue,Uniworld Communications Ltd,http://statistics.data.gov.uk/id/local-authority/23UE,http://id.spending.esd.org.uk/Dataset/23UE/2,http://id.spending.esd.org.uk/Payment/23UE/312910,http://id.spending.esd.org.uk/ExpenditureLine/23UE/312910_2,,,http://id.spending.esd.org.uk/Supplier/23UE/uniworld-communications-ltd,,,,,
Gloucester City Council,23UE,N/A,Computer Hardware <?5000,5420,Planning Delivery Grant,04/01/11,312596,1360,Revenue,Rocc Computers Ltd,http://statistics.data.gov.uk/id/local-authority/23UE,http://id.spending.esd.org.uk/Dataset/23UE/2,http://id.spending.esd.org.uk/Payment/23UE/312596,http://id.spending.esd.org.uk/ExpenditureLine/23UE/312596_1,,,http://id.spending.esd.org.uk/Supplier/23UE/rocc-computers-ltd,,,,,
Gloucester City Council,23UE,N/A,Computer Hardware <?5000,5420,Civil Parking Enforcement,04/01/11,313005,1810.94,Revenue,Chipside Ltd,http://statistics.data.gov.uk/id/local-authority/23UE,http://id.spending.esd.org.uk/Dataset/23UE/2,http://id.spending.esd.org.uk/Payment/23UE/313005,http://id.spending.esd.org.uk/ExpenditureLine/23UE/313005_1,,,http://id.spending.esd.org.uk/Supplier/23UE/chipside-ltd,,,,,
Gloucester City Council,23UE,N/A,Computer Hardware <?5000,5420,Council Streetcare Team,20/12/10,311935,907.42,Revenue,Dell Computers Corporation Ltd,http://statistics.data.gov.uk/id/local-authority/23UE,http://id.spending.esd.org.uk/Dataset/23UE/2,http://id.spending.esd.org.uk/Payment/23UE/311935,http://id.spending.esd.org.uk/ExpenditureLine/23UE/311935_1,,,http://id.spending.esd.org.uk/Supplier/23UE/dell-computers-corporation-ltd,,,,,
Gloucester City Council,23UE,N/A,Computer Hardware <?5000,5420,Projects & Maintenance,15/12/10,312521,695.53,Revenue,Dell Computers Corporation Ltd,http://statistics.data.gov.uk/id/local-authority/23UE,http://id.spending.esd.org.uk/Dataset/23UE/2,http://id.spending.esd.org.uk/Payment/23UE/312521,http://id.spending.esd.org.uk/ExpenditureLine/23UE/312521_1,,,http://id.spending.esd.org.uk/Supplier/23UE/dell-computers-corporation-ltd,,,,,
Gloucester City Council,23UE,N/A,Computer Hardware <?5000,5420,Civil Parking Enforcement,04/01/11,313006,3500,Revenue,Chipside Ltd,http://statistics.data.gov.uk/id/local-authority/23UE,http://id.spending.esd.org.uk/Dataset/23UE/2,http://id.spending.esd.org.uk/Payment/23UE/313006,http://id.spending.esd.org.uk/ExpenditureLine/23UE/313006_1,,,http://id.spending.esd.org.uk/Supplier/23UE/chipside-ltd,,,,,
Gloucester City Council,23UE,N/A,Computer Software <?5000,5425,Business Transformation & Tech,04/01/11,312909,1411.2,Revenue,Pnltools Ltd,http://statistics.data.gov.uk/id/local-authority/23UE,http://id.spending.esd.org.uk/Dataset/23UE/2,http://id.spending.esd.org.uk/Payment/23UE/312909,http://id.spending.esd.org.uk/ExpenditureLine/23UE/312909_1,,,http://id.spending.esd.org.uk/Supplier/23UE/pnltools-ltd,,,,,
Gloucester City Council,23UE,N/A,Computer Software <?5000,5425,Business Transformation & Tech,20/12/10,312522,1400,Revenue,Civica Services Ltd,http://statistics.data.gov.uk/id/local-authority/23UE,http://id.spending.esd.org.uk/Dataset/23UE/2,http://id.spending.esd.org.uk/Payment/23UE/312522,http://id.spending.esd.org.uk/ExpenditureLine/23UE/312522_1,,,http://id.spending.esd.org.uk/Supplier/23UE/civica-services-ltd,,,,,
Gloucester City Council,23UE,N/A,Computer Software Maintenance,5427,Financial Services,17/12/10,312059,900,Revenue,Advanced Business Solutions,http://statistics.data.gov.uk/id/local-authority/23UE,http://id.spending.esd.org.uk/Dataset/23UE/2,http://id.spending.esd.org.uk/Payment/23UE/312059,http://id.spending.esd.org.uk/ExpenditureLine/23UE/312059_1,,,http://id.spending.esd.org.uk/Supplier/23UE/advanced-business-solutions,,,,,
Gloucester City Council,23UE,N/A,Computer Software Maintenance,5427,Nndr Collection,04/01/11,313417,1500,Revenue,Civica Uk Ltd,http://statistics.data.gov.uk/id/local-authority/23UE,http://id.spending.esd.org.uk/Dataset/23UE/2,http://id.spending.esd.org.uk/Payment/23UE/313417,http://id.spending.esd.org.uk/ExpenditureLine/23UE/313417_1,,,http://id.spending.esd.org.uk/Supplier/23UE/civica-uk-ltd,,,,,
Gloucester City Council,23UE,N/A,Computer Software Maintenance,5427,Council Tax Collection,04/01/11,313417,4500,Revenue,Civica Uk Ltd,http://statistics.data.gov.uk/id/local-authority/23UE,http://id.spending.esd.org.uk/Dataset/23UE/2,http://id.spending.esd.org.uk/Payment/23UE/313417,http://id.spending.esd.org.uk/ExpenditureLine/23UE/313417_2,,,http://id.spending.esd.org.uk/Supplier/23UE/civica-uk-ltd,,,,,
Gloucester City Council,23UE,N/A,Conference/Meeting Expenses,5510,Cabinet Leader Office,14/12/10,312588,-37,Revenue,Co-Operative Bank,http://statistics.data.gov.uk/id/local-authority/23UE,http://id.spending.esd.org.uk/Dataset/23UE/2,http://id.spending.esd.org.uk/Payment/23UE/312588,http://id.spending.esd.org.uk/ExpenditureLine/23UE/312588_1,,,http://id.spending.esd.org.uk/Supplier/23UE/co-operative-bank,,,,,
Gloucester City Council,23UE,N/A,Redacted,Redacted,Redacted,17/12/10,312973,1235.18,,Redacted,http://statistics.data.gov.uk/id/local-authority/23UE,http://id.spending.esd.org.uk/Dataset/23UE/2,http://id.spending.esd.org.uk/Payment/23UE/312973,http://id.spending.esd.org.uk/ExpenditureLine/23UE/312973_1,,,http://id.spending.esd.org.uk/Supplier/23UE/redacted,,,,,
Gloucester City Council,23UE,N/A,Redacted,Redacted,Redacted,17/12/10,312975,871.77,,Redacted,http://statistics.data.gov.uk/id/local-authority/23UE,http://id.spending.esd.org.uk/Dataset/23UE/2,http://id.spending.esd.org.uk/Payment/23UE/312975,http://id.spending.esd.org.uk/ExpenditureLine/23UE/312975_1,,,http://id.spending.esd.org.uk/Supplier/23UE/redacted,,,,,
Gloucester City Council,23UE,N/A,Redacted,Redacted,Redacted,17/12/10,312984,548.15,,Redacted,http://statistics.data.gov.uk/id/local-authority/23UE,http://id.spending.esd.org.uk/Dataset/23UE/2,http://id.spending.esd.org.uk/Payment/23UE/312984,http://id.spending.esd.org.uk/ExpenditureLine/23UE/312984_1,,,http://id.spending.esd.org.uk/Supplier/23UE/redacted,,,,,
Gloucester City Council,23UE,N/A,Redacted,Redacted,Redacted,17/12/10,312983,1796.54,,Redacted,http://statistics.data.gov.uk/id/local-authority/23UE,http://id.spending.esd.org.uk/Dataset/23UE/2,http://id.spending.esd.org.uk/Payment/23UE/312983,http://id.spending.esd.org.uk/ExpenditureLine/23UE/312983_1,,,http://id.spending.esd.org.uk/Supplier/23UE/redacted,,,,,
Gloucester City Council,23UE,N/A,Redacted,Redacted,Redacted,09/12/10,312158,576.92,,Redacted,http://statistics.data.gov.uk/id/local-authority/23UE,http://id.spending.esd.org.uk/Dataset/23UE/2,http://id.spending.esd.org.uk/Payment/23UE/312158,http://id.spending.esd.org.uk/ExpenditureLine/23UE/312158_1,,,http://id.spending.esd.org.uk/Supplier/23UE/redacted,,,,,
Gloucester City Council,23UE,N/A,Redacted,Redacted,Redacted,17/12/10,313117,-484.6,,Redacted,http://statistics.data.gov.uk/id/local-authority/23UE,http://id.spending.esd.org.uk/Dataset/23UE/2,http://id.spending.esd.org.uk/Payment/23UE/313117,http://id.spending.esd.org.uk/ExpenditureLine/23UE/313117_2,,,http://id.spending.esd.org.uk/Supplier/23UE/redacted,,,,,
Gloucester City Council,23UE,N/A,Redacted,Redacted,Redacted,03/12/10,312108,-484.6,,Redacted,http://statistics.data.gov.uk/id/local-authority/23UE,http://id.spending.esd.org.uk/Dataset/23UE/2,http://id.spending.esd.org.uk/Payment/23UE/312108,http://id.spending.esd.org.uk/ExpenditureLine/23UE/312108_2,,,http://id.spending.esd.org.uk/Supplier/23UE/redacted,,,,,
Gloucester City Council,23UE,N/A,Redacted,Redacted,Redacted,21/12/10,312163,598.36,,Redacted,http://statistics.data.gov.uk/id/local-authority/23UE,http://id.spending.esd.org.uk/Dataset/23UE/2,http://id.spending.esd.org.uk/Payment/23UE/312163,http://id.spending.esd.org.uk/ExpenditureLine/23UE/312163_2,,,http://id.spending.esd.org.uk/Supplier/23UE/redacted,,,,,
Gloucester City Council,23UE,N/A,Redacted,Redacted,Redacted,03/12/10,312154,-370.52,,Redacted,http://statistics.data.gov.uk/id/local-authority/23UE,http://id.spending.esd.org.uk/Dataset/23UE/2,http://id.spending.esd.org.uk/Payment/23UE/312154,http://id.spending.esd.org.uk/ExpenditureLine/23UE/312154_1,,,http://id.spending.esd.org.uk/Supplier/23UE/redacted,,,,,
Gloucester City Council,23UE,N/A,Other Minor Supplies Services,5590,Safer Stronger Communities,14/12/10,312662,1550,Revenue,Gloucestershire Police Authority,http://statistics.data.gov.uk/id/local-authority/23UE,http://id.spending.esd.org.uk/Dataset/23UE/2,http://id.spending.esd.org.uk/Payment/23UE/312662,http://id.spending.esd.org.uk/ExpenditureLine/23UE/312662_1,,,http://id.spending.esd.org.uk/Supplier/23UE/gloucestershire-police-authority,,,,,
Gloucester City Council,23UE,N/A,Other Minor Supplies Services,5590,Basic Command Unit,03/12/10,312062,3650,Revenue,Icon.Net,http://statistics.data.gov.uk/id/local-authority/23UE,http://id.spending.esd.org.uk/Dataset/23UE/2,http://id.spending.esd.org.uk/Payment/23UE/312062,http://id.spending.esd.org.uk/ExpenditureLine/23UE/312062_1,,,http://id.spending.esd.org.uk/Supplier/23UE/icon-net,,,,,
Gloucester City Council,23UE,N/A,Other Minor Supplies Services,5590,Safer Stronger Communities,07/12/10,312250,500,Revenue,City Centre Community Partnership,http://statistics.data.gov.uk/id/local-authority/23UE,http://id.spending.esd.org.uk/Dataset/23UE/2,http://id.spending.esd.org.uk/Payment/23UE/312250,http://id.spending.esd.org.uk/ExpenditureLine/23UE/312250_1,,,http://id.spending.esd.org.uk/Supplier/23UE/city-centre-community-partnership,,,,,
Gloucester City Council,23UE,N/A,Other Minor Supplies Services,5590,Safer Stronger Communities,06/12/10,312159,500,Revenue,Selectamark Security Systems Plc,http://statistics.data.gov.uk/id/local-authority/23UE,http://id.spending.esd.org.uk/Dataset/23UE/2,http://id.spending.esd.org.uk/Payment/23UE/312159,http://id.spending.esd.org.uk/ExpenditureLine/23UE/312159_1,,,http://id.spending.esd.org.uk/Supplier/23UE/selectamark-security-systems-plc,,,,,
Gloucester City Council,23UE,N/A,Other Minor Supplies Services,5590,Safer Stronger Communities,22/12/10,313254,2300,Revenue,Gloucestershire Police Authority,http://statistics.data.gov.uk/id/local-authority/23UE,http://id.spending.esd.org.uk/Dataset/23UE/2,http://id.spending.esd.org.uk/Payment/23UE/313254,http://id.spending.esd.org.uk/ExpenditureLine/23UE/313254_1,,,http://id.spending.esd.org.uk/Supplier/23UE/gloucestershire-police-authority,,,,,
Gloucester City Council,23UE,N/A,Other Minor Supplies Services,5590,Safer Stronger Communities,21/12/10,313192,500,Revenue,Together In Matson,http://statistics.data.gov.uk/id/local-authority/23UE,http://id.spending.esd.org.uk/Dataset/23UE/2,http://id.spending.esd.org.uk/Payment/23UE/313192,http://id.spending.esd.org.uk/ExpenditureLine/23UE/313192_1,,,http://id.spending.esd.org.uk/Supplier/23UE/together-in-matson,,,,,
Gloucester City Council,23UE,N/A,Other Minor Supplies Services,5590,Council Tax Collection,17/12/10,312774,625,Revenue,Rating & Valuation Reporter,http://statistics.data.gov.uk/id/local-authority/23UE,http://id.spending.esd.org.uk/Dataset/23UE/2,http://id.spending.esd.org.uk/Payment/23UE/312774,http://id.spending.esd.org.uk/ExpenditureLine/23UE/312774_1,,,http://id.spending.esd.org.uk/Supplier/23UE/rating-valuation-reporter,,,,,
Gloucester City Council,23UE,N/A,Other Minor Supplies Services,5590,Basic Command Unit,14/12/10,312661,858,Revenue,Gloucestershire Police Authority,http://statistics.data.gov.uk/id/local-authority/23UE,http://id.spending.esd.org.uk/Dataset/23UE/2,http://id.spending.esd.org.uk/Payment/23UE/312661,http://id.spending.esd.org.uk/ExpenditureLine/23UE/312661_1,,,http://id.spending.esd.org.uk/Supplier/23UE/gloucestershire-police-authority,,,,,
Gloucester City Council,23UE,N/A,Other Minor Supplies Services,5590,Corporate Policy/ Performance,08/12/10,312357,7208.33,Revenue,Q Learning,http://statistics.data.gov.uk/id/local-authority/23UE,http://id.spending.esd.org.uk/Dataset/23UE/2,http://id.spending.esd.org.uk/Payment/23UE/312357,http://id.spending.esd.org.uk/ExpenditureLine/23UE/312357_1,,,http://id.spending.esd.org.uk/Supplier/23UE/q-learning,,,,,
Gloucester City Council,23UE,N/A,Other Minor Supplies Services,5590,Basic Command Unit,03/12/10,312061,716,Revenue,Icon.Net,http://statistics.data.gov.uk/id/local-authority/23UE,http://id.spending.esd.org.uk/Dataset/23UE/2,http://id.spending.esd.org.uk/Payment/23UE/312061,http://id.spending.esd.org.uk/ExpenditureLine/23UE/312061_1,,,http://id.spending.esd.org.uk/Supplier/23UE/icon-net,,,,,
Gloucester City Council,23UE,N/A,Subscriptions,5600,Business Transformation & Tech,16/12/10,312911,890,Revenue,Socitm Service Ltd*,http://statistics.data.gov.uk/id/local-authority/23UE,http://id.spending.esd.org.uk/Dataset/23UE/2,http://id.spending.esd.org.uk/Payment/23UE/312911,http://id.spending.esd.org.uk/ExpenditureLine/23UE/312911_1,,,http://id.spending.esd.org.uk/Supplier/23UE/socitm-service-ltd,,,,,
Gloucester City Council,23UE,N/A,Advertising And Publicity,5702,Economic Development,23/12/10,312090,3391,Revenue,Apt Marketing & Pr Limited,http://statistics.data.gov.uk/id/local-authority/23UE,http://id.spending.esd.org.uk/Dataset/23UE/2,http://id.spending.esd.org.uk/Payment/23UE/312090,http://id.spending.esd.org.uk/ExpenditureLine/23UE/312090_1,,,http://id.spending.esd.org.uk/Supplier/23UE/apt-marketing-pr-limited,,,,,
Gloucester City Council,23UE,N/A,Advertising And Publicity,5702,Guildhall Events,07/12/10,312184,4306.59,Revenue,Zeffa Ltd,http://statistics.data.gov.uk/id/local-authority/23UE,http://id.spending.esd.org.uk/Dataset/23UE/2,http://id.spending.esd.org.uk/Payment/23UE/312184,http://id.spending.esd.org.uk/ExpenditureLine/23UE/312184_1,,,http://id.spending.esd.org.uk/Supplier/23UE/zeffa-ltd,,,,,
Gloucester City Council,23UE,N/A,Brokerage Fees,5951,Treasury Management,08/12/10,312358,630.14,Revenue,Tradition (Uk) Ltd,http://statistics.data.gov.uk/id/local-authority/23UE,http://id.spending.esd.org.uk/Dataset/23UE/2,http://id.spending.esd.org.uk/Payment/23UE/312358,http://id.spending.esd.org.uk/ExpenditureLine/23UE/312358_1,,,http://id.spending.esd.org.uk/Supplier/23UE/tradition-uk-ltd,,,,,
Gloucester City Council,23UE,N/A,Events,5952,Xmas Festivities,08/12/10,11292,734,Revenue,Ropert Mckenzie,http://statistics.data.gov.uk/id/local-authority/23UE,http://id.spending.esd.org.uk/Dataset/23UE/2,http://id.spending.esd.org.uk/Payment/23UE/11292,http://id.spending.esd.org.uk/ExpenditureLine/23UE/11292_1,,,http://id.spending.esd.org.uk/Supplier/23UE/ropert-mckenzie,,,,,
Gloucester City Council,23UE,N/A,Events,5952,Xmas Festivities,16/12/10,11306,734,Revenue,Helen Lomberg,http://statistics.data.gov.uk/id/local-authority/23UE,http://id.spending.esd.org.uk/Dataset/23UE/2,http://id.spending.esd.org.uk/Payment/23UE/11306,http://id.spending.esd.org.uk/ExpenditureLine/23UE/11306_1,,,http://id.spending.esd.org.uk/Supplier/23UE/helen-lomberg,,,,,
Gloucester City Council,23UE,N/A,Events,5952,Xmas Festivities,15/12/10,11301,934,Revenue,Anita Andrews,http://statistics.data.gov.uk/id/local-authority/23UE,http://id.spending.esd.org.uk/Dataset/23UE/2,http://id.spending.esd.org.uk/Payment/23UE/11301,http://id.spending.esd.org.uk/ExpenditureLine/23UE/11301_1,,,http://id.spending.esd.org.uk/Supplier/23UE/anita-andrews,,,,,
Gloucester City Council,23UE,N/A,Events,5952,Xmas Festivities,07/12/10,11248,734,Revenue,Tina Dorner,http://statistics.data.gov.uk/id/local-authority/23UE,http://id.spending.esd.org.uk/Dataset/23UE/2,http://id.spending.esd.org.uk/Payment/23UE/11248,http://id.spending.esd.org.uk/ExpenditureLine/23UE/11248_1,,,http://id.spending.esd.org.uk/Supplier/23UE/tina-dorner,,,,,
Gloucester City Council,23UE,N/A,Trade Refuse Tipping Fees,6297,Cemeteries,08/12/10,312378,1010,Revenue,Allstone Sand & Gravel Aggregates Ltd,http://statistics.data.gov.uk/id/local-authority/23UE,http://id.spending.esd.org.uk/Dataset/23UE/2,http://id.spending.esd.org.uk/Payment/23UE/312378,http://id.spending.esd.org.uk/ExpenditureLine/23UE/312378_1,,,http://id.spending.esd.org.uk/Supplier/23UE/allstone-sand-gravel-aggregates-ltd,,,,,
Gloucester City Council,23UE,N/A,Trade Refuse Tipping Fees,6297,Cemeteries,15/12/10,312737,570,Revenue,Allstone Sand & Gravel Aggregates Ltd,http://statistics.data.gov.uk/id/local-authority/23UE,http://id.spending.esd.org.uk/Dataset/23UE/2,http://id.spending.esd.org.uk/Payment/23UE/312737,http://id.spending.esd.org.uk/ExpenditureLine/23UE/312737_1,,,http://id.spending.esd.org.uk/Supplier/23UE/allstone-sand-gravel-aggregates-ltd,,,,,
Gloucester City Council,23UE,N/A,On Street Parking Charges,6550,Civil Parking Enforcement,04/01/11,313471,52272.32,Revenue,Gloucestershire County Council,http://statistics.data.gov.uk/id/local-authority/23UE,http://id.spending.esd.org.uk/Dataset/23UE/2,http://id.spending.esd.org.uk/Payment/23UE/313471,http://id.spending.esd.org.uk/ExpenditureLine/23UE/313471_1,,,http://id.spending.esd.org.uk/Supplier/23UE/gloucestershire-county-council,,,,,
Gloucester City Council,23UE,N/A,On Street Parking Charges,6550,Parking Cctv,04/01/11,313472,43107.62,Revenue,Gloucestershire County Council,http://statistics.data.gov.uk/id/local-authority/23UE,http://id.spending.esd.org.uk/Dataset/23UE/2,http://id.spending.esd.org.uk/Payment/23UE/313472,http://id.spending.esd.org.uk/ExpenditureLine/23UE/313472_1,,,http://id.spending.esd.org.uk/Supplier/23UE/gloucestershire-county-council,,,,,
Gloucester City Council,23UE,N/A,Contracted Services,6970,Council Streetcare Team,20/12/10,313199,492806.54,Revenue,Enterprise (Aol) Ltd,http://statistics.data.gov.uk/id/local-authority/23UE,http://id.spending.esd.org.uk/Dataset/23UE/2,http://id.spending.esd.org.uk/Payment/23UE/313199,http://id.spending.esd.org.uk/ExpenditureLine/23UE/313199_1,,,http://id.spending.esd.org.uk/Supplier/23UE/enterprise-aol-ltd,,,,,
Gloucester City Council,23UE,N/A,Contracted Services,6970,Environmental Areas,16/12/10,313001,999.63,Revenue,Beltin Express.Com,http://statistics.data.gov.uk/id/local-authority/23UE,http://id.spending.esd.org.uk/Dataset/23UE/2,http://id.spending.esd.org.uk/Payment/23UE/313001,http://id.spending.esd.org.uk/ExpenditureLine/23UE/313001_1,,,http://id.spending.esd.org.uk/Supplier/23UE/beltin-express-com,,,,,
Gloucester City Council,23UE,N/A,Contracted Services,6970,Environmental Areas,02/12/10,309416,1099.63,Revenue,Beltin Express.Com,http://statistics.data.gov.uk/id/local-authority/23UE,http://id.spending.esd.org.uk/Dataset/23UE/2,http://id.spending.esd.org.uk/Payment/23UE/309416,http://id.spending.esd.org.uk/ExpenditureLine/23UE/309416_1,,,http://id.spending.esd.org.uk/Supplier/23UE/beltin-express-com,,,,,
Gloucester City Council,23UE,N/A,Contracted Services,6970,Aspire Admin Charges,04/01/11,313432,127047.83,Revenue,Aspire Sports & Cultural Trust,http://statistics.data.gov.uk/id/local-authority/23UE,http://id.spending.esd.org.uk/Dataset/23UE/2,http://id.spending.esd.org.uk/Payment/23UE/313432,http://id.spending.esd.org.uk/ExpenditureLine/23UE/313432_1,,,http://id.spending.esd.org.uk/Supplier/23UE/aspire-sports-cultural-trust,,,,,
Gloucester City Council,23UE,N/A,Contracted Services,6970,Off Street Car Parks,04/01/11,313274,534.94,Revenue,Chipside Ltd,http://statistics.data.gov.uk/id/local-authority/23UE,http://id.spending.esd.org.uk/Dataset/23UE/2,http://id.spending.esd.org.uk/Payment/23UE/313274,http://id.spending.esd.org.uk/ExpenditureLine/23UE/313274_1,,,http://id.spending.esd.org.uk/Supplier/23UE/chipside-ltd,,,,,
Gloucester City Council,23UE,N/A,Contracted Services,6970,Environmental Areas,23/12/10,312993,3392,Revenue,Eurolabel,http://statistics.data.gov.uk/id/local-authority/23UE,http://id.spending.esd.org.uk/Dataset/23UE/2,http://id.spending.esd.org.uk/Payment/23UE/312993,http://id.spending.esd.org.uk/ExpenditureLine/23UE/312993_1,,,http://id.spending.esd.org.uk/Supplier/23UE/eurolabel,,,,,
Gloucester City Council,23UE,N/A,Contracted Services,6970,Environmental Areas,08/12/10,312389,1900,Revenue,Abbey Surfacing,http://statistics.data.gov.uk/id/local-authority/23UE,http://id.spending.esd.org.uk/Dataset/23UE/2,http://id.spending.esd.org.uk/Payment/23UE/312389,http://id.spending.esd.org.uk/ExpenditureLine/23UE/312389_1,,,http://id.spending.esd.org.uk/Supplier/23UE/abbey-surfacing,,,,,
Gloucester City Council,23UE,N/A,Contracted Services,6970,Environmental Areas,16/12/10,312904,887,Revenue,The Fountain Company Ltd,http://statistics.data.gov.uk/id/local-authority/23UE,http://id.spending.esd.org.uk/Dataset/23UE/2,http://id.spending.esd.org.uk/Payment/23UE/312904,http://id.spending.esd.org.uk/ExpenditureLine/23UE/312904_1,,,http://id.spending.esd.org.uk/Supplier/23UE/the-fountain-company-ltd,,,,,
Gloucester City Council,23UE,N/A,Contracted Services,6970,Parking Cctv,04/01/11,313273,4138.2,Revenue,Chipside Ltd,http://statistics.data.gov.uk/id/local-authority/23UE,http://id.spending.esd.org.uk/Dataset/23UE/2,http://id.spending.esd.org.uk/Payment/23UE/313273,http://id.spending.esd.org.uk/ExpenditureLine/23UE/313273_1,,,http://id.spending.esd.org.uk/Supplier/23UE/chipside-ltd,,,,,
Gloucester City Council,23UE,N/A,Contracted Services,6970,Environmental Areas,04/01/11,311503,7203.94,Revenue,Npower,http://statistics.data.gov.uk/id/local-authority/23UE,http://id.spending.esd.org.uk/Dataset/23UE/2,http://id.spending.esd.org.uk/Payment/23UE/311503,http://id.spending.esd.org.uk/ExpenditureLine/23UE/311503_1,,,http://id.spending.esd.org.uk/Supplier/23UE/npower,,,,,
Gloucester City Council,23UE,N/A,Contracted Services,6970,Civil Parking Enforcement,02/12/10,310580,32145.6,Revenue,Apcoa Parking (Uk) Ltd,http://statistics.data.gov.uk/id/local-authority/23UE,http://id.spending.esd.org.uk/Dataset/23UE/2,http://id.spending.esd.org.uk/Payment/23UE/310580,http://id.spending.esd.org.uk/ExpenditureLine/23UE/310580_5,,,http://id.spending.esd.org.uk/Supplier/23UE/apcoa-parking-uk-ltd,,,,,
Gloucester City Council,23UE,N/A,Contracted Services,6970,Off Street Car Parks,04/01/11,313271,730.66,Revenue,Chipside Ltd,http://statistics.data.gov.uk/id/local-authority/23UE,http://id.spending.esd.org.uk/Dataset/23UE/2,http://id.spending.esd.org.uk/Payment/23UE/313271,http://id.spending.esd.org.uk/ExpenditureLine/23UE/313271_1,,,http://id.spending.esd.org.uk/Supplier/23UE/chipside-ltd,,,,,
Gloucester City Council,23UE,N/A,Contracted Services,6970,Forest Of Dean Cpe,02/12/10,310580,2208.3,Revenue,Apcoa Parking (Uk) Ltd,http://statistics.data.gov.uk/id/local-authority/23UE,http://id.spending.esd.org.uk/Dataset/23UE/2,http://id.spending.esd.org.uk/Payment/23UE/310580,http://id.spending.esd.org.uk/ExpenditureLine/23UE/310580_6,,,http://id.spending.esd.org.uk/Supplier/23UE/apcoa-parking-uk-ltd,,,,,
Gloucester City Council,23UE,N/A,Contracted Services,6970,Environmental Areas,04/01/11,313022,4700,Revenue,Hardwick Steel Fabrications Ltd,http://statistics.data.gov.uk/id/local-authority/23UE,http://id.spending.esd.org.uk/Dataset/23UE/2,http://id.spending.esd.org.uk/Payment/23UE/313022,http://id.spending.esd.org.uk/ExpenditureLine/23UE/313022_1,,,http://id.spending.esd.org.uk/Supplier/23UE/hardwick-steel-fabrications-ltd,,,,,
Gloucester City Council,23UE,N/A,Contracted Services,6970,Parking Cctv,04/01/11,313272,6892.16,Revenue,Chipside Ltd,http://statistics.data.gov.uk/id/local-authority/23UE,http://id.spending.esd.org.uk/Dataset/23UE/2,http://id.spending.esd.org.uk/Payment/23UE/313272,http://id.spending.esd.org.uk/ExpenditureLine/23UE/313272_1,,,http://id.spending.esd.org.uk/Supplier/23UE/chipside-ltd,,,,,
Gloucester City Council,23UE,N/A,Additional Non-Tender Items,6973,Council Streetcare Team,20/12/10,313104,11865.4,Revenue,Enterprise (Aol) Ltd,http://statistics.data.gov.uk/id/local-authority/23UE,http://id.spending.esd.org.uk/Dataset/23UE/2,http://id.spending.esd.org.uk/Payment/23UE/313104,http://id.spending.esd.org.uk/ExpenditureLine/23UE/313104_1,,,http://id.spending.esd.org.uk/Supplier/23UE/enterprise-aol-ltd,,,,,
Gloucester City Council,23UE,N/A,Reimbursements,9100,Public Open Space Commuted Sum,17/12/10,312995,7741.03,Revenue,Greenfields Garden Services Ltd,http://statistics.data.gov.uk/id/local-authority/23UE,http://id.spending.esd.org.uk/Dataset/23UE/2,http://id.spending.esd.org.uk/Payment/23UE/312995,http://id.spending.esd.org.uk/ExpenditureLine/23UE/312995_2,,,http://id.spending.esd.org.uk/Supplier/23UE/greenfields-garden-services-ltd,,,,,
Gloucester City Council,23UE,N/A,Sale Of Goods And Services,9230,Guildhall Events,17/12/10,312676,1276.6,Revenue,The Real Festival Company Ltd,http://statistics.data.gov.uk/id/local-authority/23UE,http://id.spending.esd.org.uk/Dataset/23UE/2,http://id.spending.esd.org.uk/Payment/23UE/312676,http://id.spending.esd.org.uk/ExpenditureLine/23UE/312676_1,,,http://id.spending.esd.org.uk/Supplier/23UE/the-real-festival-company-ltd,,,,,
Gloucester City Council,23UE,N/A,Travel Ticket Sales,9238,Public Transportation,10/12/10,312054,999.9,Revenue,Stagecoach Services Ltd*,http://statistics.data.gov.uk/id/local-authority/23UE,http://id.spending.esd.org.uk/Dataset/23UE/2,http://id.spending.esd.org.uk/Payment/23UE/312054,http://id.spending.esd.org.uk/ExpenditureLine/23UE/312054_1,,,http://id.spending.esd.org.uk/Supplier/23UE/stagecoach-services-ltd,,,,,
Gloucester City Council,23UE,N/A,Funding Vol&Com Grps-Grants,7100C,Grants To Voluntary Sector,02/12/10,311852,5000,Revenue,The Hindu Cultural Association,http://statistics.data.gov.uk/id/local-authority/23UE,http://id.spending.esd.org.uk/Dataset/23UE/2,http://id.spending.esd.org.uk/Payment/23UE/311852,http://id.spending.esd.org.uk/ExpenditureLine/23UE/311852_1,,,http://id.spending.esd.org.uk/Supplier/23UE/the-hindu-cultural-association,,,,,
